Cogmind - Beta 13 @@@ ROGUE MODE // 2024.04.22 @ 08:06:42 Player: Darby Result: Assimilated 0b10! Performance ------------- Evolutions (9) 4500 Regions Visited (36) 7200 Robots Destroyed (238) 1190 Value Destroyed (7431) 7431 Prototype IDs (111) 2220 Alien Tech Used (3) 600 Bonus (23393) 23393 TOTAL SCORE: 46534 Bonus ------- Triggered Max Security 3000 High Alert Combat Kills 208 Follower Combat Kills 3103 Entered Garrisons 800 Used RIF Installer 2000 Network Hubs Disabled 200 Aligned with FarCom 300 Met Data Miner 300 MAIN.C Attacked Warlord 500 Built Enhanced Grunts 300 A7 Reached Mainframe 300 Met R17 at Cetus 500 Met R17 at Research 2000 Met MAIN.C 5000 Used 0b10 Conduit 2000 Win 3000 Friendly Fire -118 Cogmind --------- Core Integrity 1259/1600 Matter 119/300 Energy 28/100 System Corruption 0% Temperature Cool (37) Movement Flying (28) Location 0b10 Command Parts ------- > --- POWER (2) -------- (None) > --- PROPULSION (6) --- Field Propulsion Drive Impulse Thruster Array Improved Q-thruster Experimental Q-thruster > --- UTILITY (15) ----- Large Storage Unit Machine Analyzer Spectral Analyzer Advanced Signal Interpreter Experimental Terrain Scanner Advanced Terrain Scan Processor Seismic Detector Cloaking Device Advanced Hacking Suite Advanced System Shield Relay Coupler [Grunt] (22) Relay Coupler [Sentry] (5) > --- WEAPON (2) ------- Plasma Lance > --- INVENTORY (15) --- Micro Antimatter Reactor Micro Antimatter Reactor Advanced ECM Suite Relay Coupler [Swarmer] (35) Relay Coupler [Grunt] (20) Relay Coupler [Hunter] (12) Relay Coupler [Heavy] (8) Mini Drone Bay (3/3) Subatomic Replicator Terrabomb Neutron Cannon Micro-nuke Launcher Plasma Cutter Peak State ------------ > --- POWER ------------ Matter Drive > --- PROPULSION ------- Field Propulsion Drive Q-thruster Impulse Thruster Array Improved Q-thruster Experimental Q-thruster > --- UTILITY ---------- Large Storage Unit Gravity Neutralizer Machine Analyzer Spectral Analyzer Advanced Signal Interpreter Experimental Terrain Scanner Advanced Terrain Scan Processor Seismic Detector Advanced Reaction Control System Cloaking Device Light Regenerative Plating Advanced Hacking Suite Advanced System Shield Relay Coupler [Grunt] Relay Coupler [Sentry] > --- WEAPON ----------- Advanced Remote Datajack Plasma Lance > --- INVENTORY -------- Micro Antimatter Reactor Micro Antimatter Reactor Advanced ECM Suite Relay Coupler [Swarmer] Relay Coupler [Grunt] Relay Coupler [Hunter] Relay Coupler [Heavy] Mini Drone Bay Subatomic Replicator Terrabomb Neutron Cannon Micro-nuke Launcher Plasma Cutter [Rating: 177] Favorites ----------- Power Light Deuterium Engine Engine Light Deuterium Engine Power Core Light Nuclear Core Reactor Micro Antimatter Reactor Propulsion Xenon Bombardment Thruster Treads Light Treads Leg Carbon-fiber Leg Wheel Wheel Hover Unit Combat Airjet Flight Unit Xenon Bombardment Thruster Utility Large Storage Unit Device Structural Scanner Storage Large Storage Unit Processor Advanced Signal Interpreter Hackware Relay Coupler [NC] Protection Light Regenerative Plating Weapon Kinetic Spear Energy Gun Pulse Rifle Energy Cannon Neutron Cannon Ballistic Gun Heavy Assault Rifle Ballistic Cannon Gauss Cannon Launcher Rocket Launcher Special Weapon Remote Datajack Impact Weapon Heavy Mace Slashing Weapon Ripper Piercing Weapon Kinetic Spear Special Melee Weapon Advanced Datajack Build | -11 -10 -10 -10 -9 -8 -8 -8 -8 -7 -7 -7 -7 -6 -6 -6 -6 -6 -6 -6 -5 -5 -5 -5 -5 -4 -4 -4 -4 -3 -3 -3 -3 -2 -2 -1 -1 ------- Run | Yrd Mat Min Exi Min Mat Gar Mat Gar Fac Low Low Dat Pro Fac Was Fac Gar Fac Gar Fac Ext Cet Arc Hub Fac Upp Upp War Pro Res Qua Sec Res Tes Acc Com Slots Evolved 18 | . . . . . 4 . . . 2 . . . . 2 . . . . . 2 . . . . 2 . . . . 2 . . 2 . 2 . Power 1 | . . . . . . . . . . . . . . . . . . . . . . . . . . . . . . 1 . . . . . . Propulsion 4 | . . . . . 2 . . . 1 . . . . 1 . . . . . . . . . . . . . . . . . . . . . . Utility 13 | . . . . . 2 . . . 1 . . . . 1 . . . . . 2 . . . . 2 . . . . 1 . . 2 . 2 . Weapon . | . . . . . . . . . . . . . . . . . . . . . . . . . . . . . . . . . . . . . Parts Attached 558 | 9 39 3 1 . 6 38 11 12 70 4 . . 9 48 7 4 7 60 8 20 19 8 13 9 27 3 7 2 4 56 5 7 19 3 15 5 Power 25 | 1 2 . . . 1 3 1 . 5 . . . . 1 . . . 2 1 1 1 . . . . . . . . 5 . . . . . 1 Engine 9 | 1 1 . . . . 1 . . 1 . . . . . . . . 2 . 1 1 . . . . . . . . 1 . . . . . . Core 11 | . 1 . . . 1 2 1 . 4 . . . . 1 . . . . 1 . . . . . . . . . . . . . . . . . Reactor 5 | . . . . . . . . . . . . . . . . . . . . . . . . . . . . . . 4 . . . . . 1 Propulsion 120 | 2 4 . 1 . 2 9 2 6 14 . . . . 3 . 4 . 18 1 8 6 1 5 . 8 . 1 . 1 15 . 1 3 . 4 1 Treads 17 | 1 3 . 1 . 1 3 1 . . . . . . . . . . . . . 6 . . . . . . . . 1 . . . . . . Leg 14 | . . . . . . 6 1 2 . . . . . . . . . 3 1 . . 1 . . . . . . . . . . . . . . Wheel 4 | 1 1 . . . 1 . . . . . . . . . . . . . . . . . . . . . . . . 1 . . . . . . Hover 21 | . . . . . . . . 4 9 . . . . . . . . 5 . 3 . . . . . . . . . . . . . . . . Flight 64 | . . . . . . . . . 5 . . . . 3 . 4 . 10 . 5 . . 5 . 8 . 1 . 1 13 . 1 3 . 4 1 Utility 191 | 2 4 . . . 3 7 3 1 18 3 . . 4 16 2 . 7 20 4 7 11 5 6 4 10 3 4 . 1 26 2 3 6 2 7 . Device 111 | 1 . . . . 2 3 . . 7 2 . . 4 10 2 . 5 18 1 3 6 2 5 1 8 3 4 . 1 14 1 1 2 1 4 . Storage 11 | 1 2 . . . 1 . . . 1 . . . . . . . . . . . 1 1 1 . . . . . . 2 . . 1 . . . Processor 13 | . . . . . . . . . 2 1 . . . 3 . . . . . 1 . . . . . . . . . 5 . . 1 . . . Hackware 33 | . . . . . . 1 2 1 3 . . . . 3 . . 2 1 3 . 3 . . 3 1 . . . . 1 1 2 2 1 3 . Protection 23 | . 2 . . . . 3 1 . 5 . . . . . . . . 1 . 3 1 2 . . 1 . . . . 4 . . . . . . Artifact . | . . . . . . . . . . . . . . . . . . . . . . . . . . . . . . . . . . . . . Weapon 222 | 4 29 3 . . . 19 5 5 33 1 . . 5 28 5 . . 20 2 4 1 2 2 5 9 . 2 2 2 10 3 3 10 1 4 3 Energy Gun 16 | . . . . . . 4 . 2 4 . . . . . . . . 1 . 1 . 1 . . 2 . . . . 1 . . . . . . Energy Cannon 23 | . . . . . . 1 . . 1 1 . . . 1 . . . . . . . . 1 3 2 . 1 1 1 1 1 2 3 . 2 1 Ballistic Gun 32 | 3 16 2 . . . 6 1 1 1 . . . . 1 1 . . . . . . . . . . . . . . . . . . . . . Ballistic Cannon 26 | . . . . . . . . . 9 . . . . 9 . . . 7 . . . . . . . . . . . 1 . . . . . . Launcher 6 | . . . . . . 1 1 . 1 . . . 2 . . . . . . . . 1 . . . . . . . . . . . . . . Special Weapon 52 | 1 12 1 . . . . . . 6 . . . . 14 . . . 2 2 1 . . . 1 1 . . . . 4 1 1 3 1 . 1 Impact Weapon 2 | . . . . . . . . . . . . . . . . . . 1 . . 1 . . . . . . . . . . . . . . . Slashing Weapon 30 | . . . . . . 5 1 1 5 . . . 3 3 3 . . 9 . . . . . . . . . . . . . . . . . . Piercing Weapon 12 | . . . . . . . . . . . . . . . 1 . . . . 2 . . . . . . . . . 1 1 . 4 . 2 1 Special Melee Weapon 23 | . 1 . . . . 2 2 1 6 . . . . . . . . . . . . . 1 1 4 . 1 1 1 2 . . . . . . Unidentified Prototypes 52 | . . . . . . . . 2 8 . . . 1 2 2 . . 3 . 2 . 5 1 . 4 . . . . 15 . . 1 . 4 2 Parts Lost 50 | . 2 . . . 1 13 3 2 3 . . . . . . . . 10 . . . . . . . . . 1 . 4 1 2 1 2 . 5 Power 4 | . . . . . . 1 . . 2 . . . . . . . . 1 . . . . . . . . . . . . . . . . . . Propulsion 27 | . 1 . . . . 6 3 2 1 . . . . . . . . 8 . . . . . . . . . . . 4 . 1 . . . 1 Utility 14 | . . . . . 1 4 . . . . . . . . . . . . . . . . . . . . . 1 . . 1 1 1 2 . 3 Weapon 5 | . 1 . . . . 2 . . . . . . . . . . . 1 . . . . . . . . . . . . . . . . . 1 Highest Loss Streak 5 | . 1 . . . 1 5 2 2 2 . . . . . . . . 4 . . . . . . . . . 1 . 4 1 2 1 2 . 5 To Critical Strikes 2 | . . . . . . . . 2 . . . . . . . . . . . . . . . . . . . . . . . . . . . . Average Slot Usage (%) 91 | . 99 100 100 100 98 89 94 79 98 92 92 92 92 96 100 100 98 86 93 79 77 96 80 82 92 100 100 99 94 91 92 83 83 89 80 90 Engine 3 | . 12 . . . . 5 6 . . 7 7 7 7 2 . . . . 3 2 5 5 5 5 5 5 5 5 5 3 . . . . . . Core 3 | . 1 14 14 14 9 3 2 9 5 . . . . 3 6 6 6 2 2 2 . . . . . . . . . . . . . . . . Treads 5 | . 16 14 14 28 27 9 19 3 . . . . . . . . . . . . 3 32 5 . . . . . . . . . . . . . Leg 3 | . . . . . . 21 15 12 . . . . . . . . . 2 20 3 . 2 1 . . . . . . . . . . . . . Wheel 1 | . 11 14 14 . 9 3 . . . . . . . . . . . . . . . . . . . . . . . . . . . . . . Hover 4 | . . . . . . . . 1 34 . . . . . . . . 4 . 4 . . . . . . . . . . . . . . . . Flight 15 | . . . . . . . . . 3 38 38 38 38 39 40 40 40 27 20 16 15 . 13 17 23 31 31 31 31 25 23 21 17 17 16 19 Device 7 | . 1 . . . 18 9 6 . 2 15 15 15 15 11 13 13 7 9 5 7 4 3 8 3 11 21 21 20 15 16 22 19 20 21 17 19 Storage 7 | . 14 14 14 14 11 9 9 9 7 7 7 7 7 6 6 6 6 6 6 5 5 5 5 5 5 5 5 5 5 4 4 4 4 4 4 4 Processor 9 | . . . . . . . . . 3 14 15 15 15 13 13 13 13 13 13 13 17 17 17 17 15 15 15 15 15 18 14 14 16 17 16 16 Hackware 6 | . . . . . . . 11 18 22 . . . . 6 6 6 10 3 2 5 5 5 5 19 13 5 5 5 5 6 4 2 3 6 6 16 Protection 5 | . 12 14 14 14 4 9 4 9 1 . . . . . . . . 2 3 1 5 9 7 . 5 5 5 5 5 . 4 4 4 4 4 3 Ballistic Gun 4 | . 19 27 28 28 18 6 9 9 . . . . . . . . . . . . . . . . . . . . . . . . . . . . Special Weapon 2 | . 7 . . . . . . . 1 . . . . 3 6 6 6 6 6 5 3 . . 1 1 . . . . 1 2 2 2 4 4 2 Slashing Weapon 2 | . . . . . . 3 4 . 5 7 7 7 6 5 5 6 6 5 6 2 . . . . . . . . . . . . . . . . Piercing Weapon 1 | . . . . . . . . . . . . . . . . . . . . 2 5 5 5 5 5 5 5 5 5 4 4 2 3 4 3 3 Naked Turns . | . . . . . . . . . . . . . . . . . . . . . . . . . . . . . . . . . . . . . Heaviest Build 75 | 14 36 34 34 34 73 75 58 54 63 30 30 30 31 35 40 34 36 45 45 43 66 70 74 37 41 42 42 42 38 49 54 53 59 53 54 58 Greatest Support 135 | 10 40 20 40 40 10 40 63 48 60 30 30 30 30 36 36 36 36 45 45 45 135 135 115 39 45 42 42 45 45 55 54 54 55 55 58 58 Greatest Overweight (x) 7 | 1 3 3 3 . 7 7 1 3 1 . . . 1 . 1 . . 3 . 2 2 . . . 1 . . . . 1 . . 1 . . . Average Overweight (x) . | . . 2 2 . 4 2 . 1 . . . . . . . . . . . . . . . . . . . . . . . . . . . . Largest Inventory Capacity 20 | 8 15 15 15 15 20 20 20 20 20 15 15 15 15 15 15 15 15 15 15 15 20 20 20 15 15 15 15 15 15 15 15 15 15 15 15 15 Average Capacity 15 | 7 11 15 15 15 16 20 20 20 17 15 15 15 15 15 15 15 15 15 15 15 15 20 16 15 15 15 15 15 15 15 15 15 15 15 15 15 Most Carried 20 | 8 15 15 15 15 14 20 20 20 20 14 14 14 15 15 15 15 15 15 15 15 20 20 20 15 15 14 15 15 15 15 15 15 15 15 15 15 Average Carried 14 | 7 10 15 14 14 13 19 18 19 16 12 14 14 14 14 14 15 14 14 14 14 14 19 15 14 14 13 14 15 14 14 13 13 14 14 14 14 Final Capacity 20 | 8 15 15 15 15 20 20 20 20 20 15 15 15 15 15 15 15 15 15 15 15 20 20 15 15 15 15 15 15 15 15 15 15 15 15 15 15 Final Carried 20 | 8 15 15 15 15 14 18 19 19 20 14 14 14 15 15 15 15 15 15 15 15 20 20 15 14 14 14 15 15 15 15 15 14 15 15 15 13 Class Distribution -------------------- 28% | Bothacker-Mutant 16% | Mutant 12% | Bothacker-Ninja 11% | Bothacker-Scout 9% | Bothacker-Assassin 6% | Scavenger-Assassin 5% | Scavenger-Scout 5% | Scavenger-Mutant Dominant Class ---------------- Mutant | -10/Materials Mutant | -10/Mines Mutant | -10/Exiles Mutant | -9/Mines Scavenger-Skirmisher | -8/Materials Scavenger-Mutant | -8/Garrison Bothacker-Mutant | -8/Materials Bothacker-Mutant | -8/Garrison Bothacker-Mutant | -7/Factory Bothacker-Scout | -7/Lower Caves Bothacker-Scout | -7/Lower Caves Bothacker-Scout | -7/Data Miner Bothacker-Scout | -6/Proximity Caves Bothacker-Scout | -6/Factory Bothacker-Ninja | -6/Waste Bothacker-Ninja | -6/Factory Bothacker-Sprinter | -6/Garrison Bothacker-Mutant | -6/Factory Bothacker-Mutant | -6/Garrison Bothacker-Ninja | -5/Factory Bothacker-Assassin | -5/Extension Scavenger-Assassin | -5/Cetus Bothacker-Scout | -5/Archives Bothacker-Scout | -5/Hub_04(d) Bothacker-Scout | -4/Factory Scavenger-Scout | -4/Upper Caves Scavenger-Scout | -4/Upper Caves Scavenger-Scout | -4/Warlord Scavenger-Assassin | -3/Proximity Caves Bothacker-Ninja | -3/Research Bothacker-Ninja | -3/Quarantine Scavenger-Scout | -3/Section 7 Scavenger-Ninja | -2/Research Bothacker-Ninja | -2/Testing Bothacker-Ninja | -1/Access Bothacker-Ninja | -1/Command Resources | -11 -10 -10 -10 -9 -8 -8 -8 -8 -7 -7 -7 -7 -6 -6 -6 -6 -6 -6 -6 -5 -5 -5 -5 -5 -4 -4 -4 -4 -3 -3 -3 -3 -2 -2 -1 -1 ----------- Run | Yrd Mat Min Exi Min Mat Gar Mat Gar Fac Low Low Dat Pro Fac Was Fac Gar Fac Gar Fac Ext Cet Arc Hub Fac Upp Upp War Pro Res Qua Sec Res Tes Acc Com Matter Collected 9230 | 431 964 201 . 220 97 707 150 94 1617 45 10 . 229 693 105 50 75 925 115 174 419 115 135 30 294 80 70 15 40 556 . 5 283 . 286 . Remotely . | . . . . . . . . . . . . . . . . . . . . . . . . . . . . . . . . . . . . . Salvage Created 9032 | 340 1208 316 . 335 94 998 104 228 1681 81 121 . 356 721 . 80 . 551 . 174 115 . 318 . 480 28 46 . . 302 . . 177 . 178 . Parts 533 | 33 92 17 . 46 3 50 8 6 92 3 . . 9 37 . 2 . 19 . 22 9 . 27 . 21 1 3 . . 15 . . 9 . 9 . Haulers Intercepted 15 | . 2 . . . . . . . 4 . . . 1 . . 1 . 3 . . . . . . 1 . . . . 2 . . . . 1 . Recyclers Shooed 16 | 1 1 4 . 2 . . . . 2 . . . . 3 . . . 2 . . . . . . 1 . . . . . . . . . . . Parts Field Recycled . | . . . . . . . . . . . . . . . . . . . . . . . . . . . . . . . . . . . . . Retrieved Matter . | . . . . . . . . . . . . . . . . . . . . . . . . . . . . . . . . . . . . . Parts Self-Destructed 30 | . . . . . . . . . . 19 . . 7 . . . . . . . . . . . . 1 3 . . . . . . . . . Prevented 5 | . . . . . . . . . . . . . 3 . . . . . . . . . . . . . 2 . . . . . . . . . Kills | -11 -10 -10 -10 -9 -8 -8 -8 -8 -7 -7 -7 -7 -6 -6 -6 -6 -6 -6 -6 -5 -5 -5 -5 -5 -4 -4 -4 -4 -3 -3 -3 -3 -2 -2 -1 -1 ------- Run | Yrd Mat Min Exi Min Mat Gar Mat Gar Fac Low Low Dat Pro Fac Was Fac Gar Fac Gar Fac Ext Cet Arc Hub Fac Upp Upp War Pro Res Qua Sec Res Tes Acc Com Combat Hostiles Destroyed 89 | . 14 2 . 4 2 21 6 5 17 . . . 8 8 . . . 1 . . 1 . . . . . . . . . . . . . . . Melee 14 | . . . . . . 7 2 . 4 . . . . . . . . . . . 1 . . . . . . . . . . . . . . . Guns 35 | . 14 2 . 4 2 8 . 5 . . . . . . . . . . . . . . . . . . . . . . . . . . . . Cannons 12 | . . . . . . . . . 8 . . . . 3 . . . 1 . . . . . . . . . . . . . . . . . . AOE 28 | . . . . . . 6 4 . 5 . . . 8 5 . . . . . . . . . . . . . . . . . . . . . . Classes Destroyed 17 | 3 6 . . . . 4 . . 2 2 . . . . . . . . . . . . . . . . . . . . . . . . . . Worker 33 | 4 7 2 . 6 . . . . 9 . . . . 2 . . . 2 . . . . . . . . . . . . . . . . 1 . Builder 24 | . 7 . . 4 . . . . 5 . . . . 2 . . . 1 . 3 . . . . . . . . . . . . 1 . 1 . Tunneler 22 | 9 2 2 . 3 . . . . 2 . . . . 1 . . . 1 . 1 . . . . . . . . . . . . . . 1 . Hauler 15 | . 2 . . . . . . . 4 . . . 1 . . 1 . 3 . . . . . . 1 . . . . 2 . . . . 1 . Recycler 20 | 1 4 2 . . . . . . 5 . . . . 4 . . . 1 . . . . . . 2 . . . . . . . 1 . . . Minesweeper 7 | . . . . . . . . . . 1 . . 3 . . . . . . . . . . . . 1 2 . . . . . . . . . Mechanic 2 | . . . . . . . . . 1 . . . . . . . . . . 1 . . . . . . . . . . . . . . . . Operator 11 | . 2 . . . . . . . . . . . . . . . . . . . . . 9 . . . . . . . . . . . . . Watcher 15 | . 3 . . . . . . . 2 . . . . . . . . 1 . 2 2 . . . 3 . . . . 2 . . . . . . Swarmer 26 | . 6 2 . 4 . 4 3 . . . . . . 7 . . . . . . . . . . . . . . . . . . . . . . Grunt 40 | . 8 . . . 2 11 1 4 5 . . . 8 . . . . . . . 1 . . . . . . . . . . . . . . . Duelist 2 | . . . . . . . . . 2 . . . . . . . . . . . . . . . . . . . . . . . . . . . Sentry 7 | . . . . . . 2 1 . 4 . . . . . . . . . . . . . . . . . . . . . . . . . . . Specialist 2 | . . . . . . 2 . . . . . . . . . . . . . . . . . . . . . . . . . . . . . . Hunter 4 | . . . . . . 1 1 1 . . . . . . . . . 1 . . . . . . . . . . . . . . . . . . Programmer 8 | . . . . . . 1 . . 6 . . . . 1 . . . . . . . . . . . . . . . . . . . . . . Decomposer 1 | . . . . . . . . . . . . . 1 . . . . . . . . . . . . . . . . . . . . . . . Samaritan 1 | . . . . . . . . . . 1 . . . . . . . . . . . . . . . . . . . . . . . . . . Best Kill Streak 7 | 4 7 2 . 4 2 6 4 4 4 1 . . 6 4 . 1 . 2 . 2 2 . 5 . 2 1 1 . . 2 . . 1 . 2 . Combat Bots Only 6 | . 6 2 . 4 2 6 4 4 2 . . . 5 4 . . . 1 . . 1 . . . . . . . . . . . . . . . Max Kills in Single Turn 4 | 1 1 1 . 1 1 2 1 1 2 1 . . 3 4 . 1 . 2 . 1 1 . 1 . 1 1 1 . . 1 . . 1 . 1 . Gunslinging . | . . . . . . . . . . . . . . . . . . . . . . . . . . . . . . . . . . . . . Exploded 3 | . . . . . . 2 1 . 2 . . . 3 3 . . . . . . . . . . . . . . . . . . . . . . Melee 1 | . . . . . . 1 1 . 1 . . . . . . . . . . . 1 . . . . . . . . . . . . . . . Uniques/NPCs Destroyed . | . . . . . . . . . . . . . . . . . . . . . . . . . . . . . . . . . . . . . Combat | -11 -10 -10 -10 -9 -8 -8 -8 -8 -7 -7 -7 -7 -6 -6 -6 -6 -6 -6 -6 -5 -5 -5 -5 -5 -4 -4 -4 -4 -3 -3 -3 -3 -2 -2 -1 -1 -------- Run | Yrd Mat Min Exi Min Mat Gar Mat Gar Fac Low Low Dat Pro Fac Was Fac Gar Fac Gar Fac Ext Cet Arc Hub Fac Upp Upp War Pro Res Qua Sec Res Tes Acc Com Hostile Shots Fired 851 | . 86 9 . 31 9 190 45 42 164 . . . 6 19 . 1 22 42 20 4 5 6 . . 6 . . 2 2 . 13 37 26 22 4 38 Missed 331 | . 16 2 . 6 3 57 12 8 93 . . . 3 11 . . 11 11 10 2 . . . . 4 . . . 1 . 7 25 17 12 1 19 Damage Taken 8769 | . 702 56 . 198 91 1957 491 532 747 . . . 61 180 . 18 114 621 94 39 161 267 23 . 105 . . 192 18 253 123 265 202 223 78 958 Core 1287 | . 137 8 . 21 . 199 61 123 125 . . . 22 19 . 18 23 84 24 . . . . . 31 . . . . . . . 25 26 23 318 Absorbed by Shields 202 | . . . . . . 90 . . . . . . . . . . . 8 . . . 104 . . . . . . . . . . . . . . Regen/Repaired (Parts) 628 | . . . . . . . . . 170 . . . . . 3 . 5 39 6 . 37 24 . . . . . . 95 . 16 33 123 1 76 . Core Remaining (%) 79 | 100 . . . 33 . . . 30 . . . . 79 . . . . . 80 . . . . 100 . . . . 97 . . 100 . 96 . 78 Volleys Fired 811 | 38 305 38 . 33 7 66 13 26 87 . . . 7 43 . 2 9 51 7 . 12 2 . 10 4 . 2 3 2 1 4 14 19 1 5 . Largest 2 | 2 2 2 . 2 2 2 1 2 2 . . . 1 1 . 1 1 1 1 . 1 1 . 1 1 . 1 1 1 1 1 1 1 1 1 . Hottest 240 | 120 120 100 . 46 46 88 33 81 96 . . . 45 48 . 5 5 48 5 . 7 240 . 90 90 . 90 90 90 10 10 90 90 10 90 . Shots Fired 1133 | 74 438 62 . 66 14 101 13 44 123 . . . 7 43 . 2 9 51 7 . 12 2 . 10 4 . 2 3 2 1 4 14 19 1 5 . Gun 733 | 71 380 61 . 66 14 93 . 44 3 . . . . . . . . . . . . 1 . . . . . . . . . . . . . . Cannon 224 | . . . . . . . . . 103 . . . . 37 . . . 45 . . . . . 10 2 . 2 3 2 . . 5 11 . 4 . Launcher 29 | . . . . . . 8 13 . . . . . 7 . . . . . . . . 1 . . . . . . . . . . . . . . Special 147 | 3 58 1 . . . . . . 17 . . . . 6 . 2 9 6 7 . 12 . . . 2 . . . . 1 4 9 8 1 1 . Kinetic 874 | 71 380 61 . 66 14 70 . 26 104 . . . . 37 . . . 45 . . . . . . . . . . . . . . . . . . Thermal 146 | 3 58 1 . . . 23 . 18 2 . . . . 1 . . . . . . . 1 . 10 2 . 2 3 2 . . 5 11 . 4 . Explosive 29 | . . . . . . 8 13 . . . . . 7 . . . . . . . . 1 . . . . . . . . . . . . . . Electromagnetic . | . . . . . . . . . . . . . . . . . . . . . . . . . . . . . . . . . . . . . Robot Hit Streak 17 | 9 12 7 . 8 5 11 . 16 13 . . . 17 3 . 4 8 10 2 . 5 1 . . 2 . . . . 3 4 6 5 . 1 . Robot Miss Streak 5 | 3 3 4 . 4 2 5 . 2 5 . . . 2 4 . . 1 2 2 . 2 2 . . . . . . . . 1 2 1 1 . . Penetration Max 1 | . . . . . . . . . 1 . . . . . . . . . . . . . . . . . . . . . . . . . . . Secondary Targets 4 | . 2 . . . . 1 . 1 . . . . . . . . . . . . . . . . . . . . . . . . . . . . Max Gunslinging Chain 1 | . 1 . . . . 1 . 1 . . . . . . . . . . . . . . . . . . . . . . . . . . . . Shots Hit Robots 718 | 43 145 24 . 35 9 104 4 35 115 4 4 . 12 25 . 9 8 36 3 10 13 1 13 2 13 4 7 . . 8 3 7 8 1 13 . Core Hits 363 | 19 66 9 . 19 5 40 8 11 52 2 . . 46 24 . . . 12 . 6 2 12 10 . 8 1 2 . . 5 . . 2 . 2 . Critical Kills 1 | 1 . . . . . . . . . . . . . . . . . . . . . . . . . . . . . . . . . . . . Critical Parts Destroyed 2 | . 2 . . . . . . . . . . . . . . . . . . . . . . . . . . . . . . . . . . . Critical Strikes 32 | 1 2 . . . . 6 . 3 11 . . . . 1 . 1 . 3 . . . . 1 . 1 . . . . 1 . . . . 1 . Burn 4 | . . . . . . 1 . 3 . . . . . . . . . . . . . . . . . . . . . . . . . . . . Destroy 3 | 1 2 . . . . . . . . . . . . . . . . . . . . . . . . . . . . . . . . . . . Blast 11 | . . . . . . . . . 8 . . . . 1 . . . 2 . . . . . . . . . . . . . . . . . . Sever 10 | . . . . . . 5 . . 3 . . . . . . 1 . 1 . . . . . . . . . . . . . . . . . . Impale 4 | . . . . . . . . . . . . . . . . . . . . . . . 1 . 1 . . . . 1 . . . . 1 . Melee Attacks 511 | . . . . . . 46 11 2 86 7 6 . 9 37 . 11 18 65 6 20 17 . 26 9 34 10 8 2 4 17 9 2 12 6 29 2 Impact 1 | . . . . . . . . . . . . . . . . . . . . . 1 . . . . . . . . . . . . . . . Slashing 294 | . . . . . . 44 7 1 82 7 6 . 9 37 . 11 18 65 6 1 . . . . . . . . . . . . . . . . Piercing 203 | . . . . . . . . . . . . . . . . . . . . 19 16 . 26 7 34 10 8 2 4 17 9 2 12 6 29 2 Sneak Attacks 84 | . . . . . . 2 . . 25 3 . . 5 6 . 1 . 9 . 6 2 . 8 1 4 1 2 . . 3 . . 1 . 5 . Combat Hostiles 5 | . . . . . . 2 . . . . . . . . . . . . . . 2 . . 1 . . . . . . . . . . . . Follow-up Attacks . | . . . . . . . . . . . . . . . . . . . . . . . . . . . . . . . . . . . . . Damage Inflicted 23804 | 429 1599 357 . 528 133 2852 423 540 5547 243 303 . 1642 1877 . 427 . 1770 . 778 264 236 887 . 624 246 444 . . 565 . . 168 45 877 . Guns 4615 | 429 1428 357 . 528 133 1200 . 540 . . . . . . . . . . . . . . . . . . . . . . . . . . . . Cannons 1942 | . . . . . . . . . 1293 . . . . 257 . . . 357 . . . . . . . . . . . . . . 35 . . . Explosions 4622 | . 171 . . . . 324 339 . 1128 . . . 1148 884 . . . 392 . . . 236 . . . . . . . . . . . . . . Melee 12616 | . . . . . . 1328 75 . 3126 243 303 . 494 736 . 427 . 1021 . 778 264 . 887 . 624 246 444 . . 565 . . 133 45 877 . Ramming 9 | . . . . . . . 9 . . . . . . . . . . . . . . . . . . . . . . . . . . . . . Kinetic 5911 | 429 1428 357 . 528 133 812 . 317 1293 . . . . 257 . . . 357 . . . . . . . . . . . . . . . . . . Thermal 2560 | . 171 . . . . 388 . 223 638 . . . . 713 . . . 392 . . . . . . . . . . . . . . 35 . . . Explosive 2517 | . . . . . . 324 339 . 470 . . . 1148 . . . . . . . . 236 . . . . . . . . . . . . . . Electromagnetic 191 | . . . . . . . . . 20 . . . . 171 . . . . . . . . . . . . . . . . . . . . . . Impact . | . . . . . . . . . . . . . . . . . . . . . . . . . . . . . . . . . . . . . Slashing 7858 | . . . . . . 1328 75 . 3126 243 303 . 494 736 . 427 . 1021 . 105 . . . . . . . . . . . . . . . . Piercing 4758 | . . . . . . . . . . . . . . . . . . . . 673 264 . 887 . 624 246 444 . . 565 . . 133 45 877 . Highest Corruption 4 | . . . . . . 1 1 1 1 1 1 1 1 1 1 1 2 4 . 3 3 3 3 . . . . 1 1 3 . . . . . . Average Corruption 1 | . . . . . . 1 1 1 1 1 1 1 1 1 1 1 1 3 . 3 3 3 2 . . . . 1 1 1 . . . . . . Corruption Purged 12 | . . . . . . . . . . . . . . . . . . 4 . . . . 3 . . . . . 1 4 . . . . . . Corruption Blocked . | . . . . . . . . . . . . . . . . . . . . . . . . . . . . . . . . . . . . . Effects 114 | . . . . . . 15 4 7 2 . . . 1 . 3 . 4 11 . 7 40 12 2 . . . . . 1 5 . . . . . . Message Errors 28 | . . . . . . 3 3 . 1 . . . 1 . . . 1 3 . 2 9 2 1 . . . . . 1 1 . . . . . . Matter Fused 33 | . . . . . . 5 . 5 . . . . . . . . . 4 . 2 12 2 1 . . . . . . 2 . . . . . . Heat Flow Errors 19 | . . . . . . 1 . . . . . . . . 1 . 3 1 . 3 6 4 . . . . . . . . . . . . . . Energy Discharges 14 | . . . . . . 3 1 . 1 . . . . . 1 . . 1 . . 4 2 . . . . . . . 1 . . . . . . Parts Rejected 1 | . . . . . . . . . . . . . . . . . . 1 . . . . . . . . . . . . . . . . . . Parts Fused 3 | . . . . . . . . . . . . . . . 1 . . . . . 1 1 . . . . . . . . . . . . . . Data Loss (minor) 10 | . . . . . . 3 . 1 . . . . . . . . . . . . 4 1 . . . . . . . 1 . . . . . . Data Loss (major) 4 | . . . . . . . . 1 . . . . . . . . . 1 . . 2 . . . . . . . . . . . . . . . Alerts 2 | . . . . . . . . . . . . . . . . . . . . . 2 . . . . . . . . . . . . . . . Overload Shots 1 | . . . . . . . . . . . . . . . . . . . . . . 1 . . . . . . . . . . . . . . Overflow Damage 2609 | . 129 . . . . 86 . . 667 56 152 . 108 268 . 70 . 277 . 167 30 . 75 . 9 92 166 . . . . . . . 257 . Projectiles 10 | . . . . . . . . . 7 . . . . 3 . . . . . . . . . . . . . . . . . . . . . . Explosions 382 | . 129 . . . . 28 . . 81 . . . . 50 . . . 94 . . . . . . . . . . . . . . . . . . Melee 2217 | . . . . . . 58 . . 579 56 152 . 108 215 . 70 . 183 . 167 30 . 75 . 9 92 166 . . . . . . . 257 . Knockbacks 10 | . . . . . . . . . 6 . . . . 2 . . . 2 . . . . . . . . . . . . . . . . . . Impact . | . . . . . . . . . . . . . . . . . . . . . . . . . . . . . . . . . . . . . Kinetic 10 | . . . . . . . . . 6 . . . . 2 . . . 2 . . . . . . . . . . . . . . . . . . Secondary . | . . . . . . . . . . . . . . . . . . . . . . . . . . . . . . . . . . . . . Self-Inflicted Damage 27 | . . . . . . . . . . . . . . . . . . . . . . 27 . . . . . . . . . . . . . . Shots 1 | . . . . . . . . . . . . . . . . . . . . . . 1 . . . . . . . . . . . . . . Rammed 3 | . . . . . . . 3 . . . . . . . . . . . . . . . . . . . . . . . . . . . . . Targets Rammed 3 | . . . . . . . 3 . . . . . . . . . . . . . . . . . . . . . . . . . . . . . Kicked . | . . . . . . . . . . . . . . . . . . . . . . . . . . . . . . . . . . . . . Crushed . | . . . . . . . . . . . . . . . . . . . . . . . . . . . . . . . . . . . . . Highest Temperature 401 | 60 288 40 . . 3 401 10 339 201 4 4 4 18 186 182 262 264 288 . 262 239 334 . 74 36 2 72 81 53 280 137 228 194 4 104 86 Average Temperature 54 | 34 28 22 . . 3 131 6 143 24 2 2 2 2 45 73 83 67 71 . 101 94 130 . 29 7 2 38 31 11 62 43 67 67 4 30 45 Received Heat Transfer 2016 | . 234 . . . 54 849 180 171 180 . . . 21 9 . 9 18 54 12 18 45 9 . . 9 . . 9 9 . 9 45 9 27 9 27 Effects 16 | . . . . . . 3 . 1 . . . . . . . . 3 6 . . . . . . . . . . . 3 . . . . . . Shutdowns 2 | . . . . . . 1 . 1 . . . . . . . . . . . . . . . . . . . . . . . . . . . . Energy Bleed 4 | . . . . . . 1 . . . . . . . . . . . . . . . . . . . . . . . 3 . . . . . . Interference 9 | . . . . . . . . . . . . . . . . . 3 6 . . . . . . . . . . . . . . . . . . Short Circuit 1 | . . . . . . 1 . . . . . . . . . . . . . . . . . . . . . . . . . . . . . . Siege Activations . | . . . . . . . . . . . . . . . . . . . . . . . . . . . . . . . . . . . . . Robots Corrupted . | . . . . . . . . . . . . . . . . . . . . . . . . . . . . . . . . . . . . . Combat Hostiles . | . . . . . . . . . . . . . . . . . . . . . . . . . . . . . . . . . . . . . Parts Fried . | . . . . . . . . . . . . . . . . . . . . . . . . . . . . . . . . . . . . . Impact Corruptions . | . . . . . . . . . . . . . . . . . . . . . . . . . . . . . . . . . . . . . Robots Melted . | . . . . . . . . . . . . . . . . . . . . . . . . . . . . . . . . . . . . . Combat Hostiles . | . . . . . . . . . . . . . . . . . . . . . . . . . . . . . . . . . . . . . Parts Melted 7 | . . . . . . 1 . 2 2 . . . . 2 . . . . . . . . . . . . . . . . . . . . . . Heat Transferred 2941 | . 100 . . . . 888 . 703 450 . . . . 450 . . . 350 . . . . . . . . . . . . . . . . . . Parts Sabotaged . | . . . . . . . . . . . . . . . . . . . . . . . . . . . . . . . . . . . . . Parts Stolen . | . . . . . . . . . . . . . . . . . . . . . . . . . . . . . . . . . . . . . Parts Stripped . | . . . . . . . . . . . . . . . . . . . . . . . . . . . . . . . . . . . . . Power Chain Reactions 3 | . . . . . . . . . . . . . . 3 . . . . . . . . . . . . . . . . . . . . . . Alert | -11 -10 -10 -10 -9 -8 -8 -8 -8 -7 -7 -7 -7 -6 -6 -6 -6 -6 -6 -6 -5 -5 -5 -5 -5 -4 -4 -4 -4 -3 -3 -3 -3 -2 -2 -1 -1 ------- Run | Yrd Mat Min Exi Min Mat Gar Mat Gar Fac Low Low Dat Pro Fac Was Fac Gar Fac Gar Fac Ext Cet Arc Hub Fac Upp Upp War Pro Res Qua Sec Res Tes Acc Com Peak Influence 1706 | 70 748 372 . 110 63 1126 685 411 468 . . . . 467 95 194 184 340 478 313 316 246 198 41 207 . . . . 275 1706 1698 1313 1613 1322 918 Initial 1100 | . . 277 . . 23 40 548 240 215 . . . . 49 95 66 135 96 238 250 137 . 23 . 19 . . . . . 8 1100 1100 738 1100 839 Average 306 | 42 482 293 . 70 41 588 574 367 281 . . . . 214 95 74 107 184 374 247 83 133 130 13 88 . . . . 89 1644 1638 1186 1590 1209 893 Maximum Alert Level 5 | . 3 1 . . . 4 2 2 2 . . . . 2 . . . 1 2 1 1 1 . . 1 . . . . 1 5 5 4 5 4 3 Low Security (%) 45 | 100 13 7 . 100 100 9 . . 25 . . . . 45 100 100 100 46 . 21 97 81 100 100 95 . . . . 84 . . . . . . Level 1 30 | . 19 92 . . . 26 15 37 66 . . . . 50 . . . 53 48 78 2 18 . . 4 . . . . 15 . . . . . . Level 2 14 | . 50 . . . . 26 84 62 7 . . . . 3 . . . . 51 . . . . . . . . . . . . . . . . . Level 3 4 | . 17 . . . . 31 . . . . . . . . . . . . . . . . . . . . . . . . . . . 1 . 100 Level 4 3 | . . . . . . 6 . . . . . . . . . . . . . . . . . . . . . . . . . . 100 . 100 . Level 5 . | . . . . . . . . . . . . . . . . . . . . . . . . . . . . . . . . . . . . . High Security . | . . . . . . . . . . . . . . . . . . . . . . . . . . . . . . . . . . . . . Max Security 1 | . . . . . . . . . . . . . . . . . . . . . . . . . . . . . . . 99 99 . 98 . . Squads Dispatched 88 | . 4 . . . 1 . 3 . 16 . . . . 6 . 1 . 13 . 3 . . . 7 3 . . . . 8 6 6 6 . 5 . Investigation 32 | . 2 . . . 1 . . . 5 . . . . 3 . . . 3 . 2 . . . 4 1 . . . . 6 . . 3 . 2 . Extermination 15 | . . . . . . . . . 5 . . . . 2 . . . 6 . 1 . . . . 1 . . . . . . . . . . . Reinforcement 23 | . 2 . . . . . 3 . 5 . . . . 1 . . . 4 . . . . . 3 1 . . . . 2 . . 2 . . . Assault 16 | . . . . . . . . . . . . . . . . . . . . . . . . . . . . . . . 6 6 1 . 3 . Garrison 2 | . . . . . . . . . 1 . . . . . . 1 . . . . . . . . . . . . . . . . . . . . Intercept . | . . . . . . . . . . . . . . . . . . . . . . . . . . . . . . . . . . . . . Searches Triggered . | . . . . . . . . . . . . . . . . . . . . . . . . . . . . . . . . . . . . . Construction Impeded 3 | . . . . . . . . . 1 . . . . . . . . 2 . . . . . . . . . . . . . . . . . . Haulers Reinforced 3 | . . . . . . . . . 1 . . . . . . . . 1 . . . . . . . . . . . 1 . . . . . . Active Scanning Responses . | . . . . . . . . . . . . . . . . . . . . . . . . . . . . . . . . . . . . . Cargo Convoy Interrupts . | . . . . . . . . . . . . . . . . . . . . . . . . . . . . . . . . . . . . . Stealth | -11 -10 -10 -10 -9 -8 -8 -8 -8 -7 -7 -7 -7 -6 -6 -6 -6 -6 -6 -6 -5 -5 -5 -5 -5 -4 -4 -4 -4 -3 -3 -3 -3 -2 -2 -1 -1 --------- Run | Yrd Mat Min Exi Min Mat Gar Mat Gar Fac Low Low Dat Pro Fac Was Fac Gar Fac Gar Fac Ext Cet Arc Hub Fac Upp Upp War Pro Res Qua Sec Res Tes Acc Com Distress Signals 20 | . 1 . . . . . . . 5 . . . . 1 . . . 1 . . . 2 . . 1 . . . . 3 1 2 1 1 1 . Communications Jammed . | . . . . . . . . . . . . . . . . . . . . . . . . . . . . . . . . . . . . . Distress Signals . | . . . . . . . . . . . . . . . . . . . . . . . . . . . . . . . . . . . . . Times Spotted 393 | . 31 2 . 4 2 28 11 6 49 . 1 . 8 17 . 7 12 33 16 10 21 7 5 9 17 . . 12 5 14 9 19 17 7 8 6 Peak Tracking Total 23 | . 6 2 . 4 2 6 4 3 8 . 1 . 5 3 . 4 9 4 5 6 4 4 2 5 5 . . 14 5 5 12 23 7 7 7 5 Tactical Retreats 47 | . . . . . . 9 . 1 7 . 1 . . 4 . . 5 3 . 1 1 . . . 4 . . . 4 3 . 1 2 . 1 . Traps | -11 -10 -10 -10 -9 -8 -8 -8 -8 -7 -7 -7 -7 -6 -6 -6 -6 -6 -6 -6 -5 -5 -5 -5 -5 -4 -4 -4 -4 -3 -3 -3 -3 -2 -2 -1 -1 ------- Run | Yrd Mat Min Exi Min Mat Gar Mat Gar Fac Low Low Dat Pro Fac Was Fac Gar Fac Gar Fac Ext Cet Arc Hub Fac Upp Upp War Pro Res Qua Sec Res Tes Acc Com Traps Triggered 39 | . . . . . . 7 . 2 2 . . . . 4 . . 3 1 2 2 6 . . . 3 . . 2 . 5 . . . . . . Indirectly . | . . . . . . . . . . . . . . . . . . . . . . . . . . . . . . . . . . . . . Trap Hack Attempts 22 | . 22 . . . . . . . . . . . . . . . . . . . . . . . . . . . . . . . . . . . Triggered . | . . . . . . . . . . . . . . . . . . . . . . . . . . . . . . . . . . . . . Disarmed . | . . . . . . . . . . . . . . . . . . . . . . . . . . . . . . . . . . . . . Reprogrammed 4 | . 4 . . . . . . . . . . . . . . . . . . . . . . . . . . . . . . . . . . . Reused 6 | . . . . . . . . . . . . . . . . . 5 1 . . . . . . . . . . . . . . . . . . Traps Extracted 1 | . . . . . . . . . . . . . . . . . 1 . . . . . . . . . . . . . . . . . . . Installed 7 | . . . . . . . . . . . . . . . . . 6 1 . . . . . . . . . . . . . . . . . . Triggered 16 | . . . . . . . . . . 1 . . 2 . . . 5 1 . . . . . . . . 3 4 . . . . . . . . Most Traps Carried 6 | . . . . . . . . . . . . . 6 6 6 6 6 1 . . . . . . . 3 6 6 6 6 . . . . . . Machines | -11 -10 -10 -10 -9 -8 -8 -8 -8 -7 -7 -7 -7 -6 -6 -6 -6 -6 -6 -6 -5 -5 -5 -5 -5 -4 -4 -4 -4 -3 -3 -3 -3 -2 -2 -1 -1 ---------- Run | Yrd Mat Min Exi Min Mat Gar Mat Gar Fac Low Low Dat Pro Fac Was Fac Gar Fac Gar Fac Ext Cet Arc Hub Fac Upp Upp War Pro Res Qua Sec Res Tes Acc Com Machines Disabled 124 | . 39 4 . 1 . 5 . 1 30 1 . . . 17 . 1 1 6 . 1 3 1 5 . . . . . . . 4 2 1 1 . . Max in Single Turn 4 | . 2 1 . 1 . 2 . 1 4 1 . . . 4 . . 1 4 . 1 1 1 1 . . . . . . . 1 1 . 1 . . Garrison Access 1 | . . . . . . . . . . . . . . . . . . . . . . . . . . . . . . 1 . . . . . . Garrison Relay 6 | . . . . . . 3 . 1 . . . . . . . . 1 . 1 . . . . . . . . . . . . . . . . . Phase Generator 2 | . . . . . . 1 . . . . . . . . . . . . 1 . . . . . . . . . . . . . . . . . Network Hub 1 | . . . . . . . . . . . . . . . . . . . . . . . . 1 . . . . . . . . . . . . Machines Repaired . | . . . . . . . . . . . . . . . . . . . . . . . . . . . . . . . . . . . . . Machines Dismantled 3 | . . . . . . . . . . . . . . . . . . . 2 . . . . 1 . . . . . . . . . . . . Machines Sabotaged . | . . . . . . . . . . . . . . . . . . . . . . . . . . . . . . . . . . . . . Overloaded Fab Kills . | . . . . . . . . . . . . . . . . . . . . . . . . . . . . . . . . . . . . . Hacking | -11 -10 -10 -10 -9 -8 -8 -8 -8 -7 -7 -7 -7 -6 -6 -6 -6 -6 -6 -6 -5 -5 -5 -5 -5 -4 -4 -4 -4 -3 -3 -3 -3 -2 -2 -1 -1 --------- Run | Yrd Mat Min Exi Min Mat Gar Mat Gar Fac Low Low Dat Pro Fac Was Fac Gar Fac Gar Fac Ext Cet Arc Hub Fac Upp Upp War Pro Res Qua Sec Res Tes Acc Com Machines Accessed 180 | . 9 . 5 . 2 3 4 1 25 1 1 3 . 12 . 2 2 25 1 13 6 3 1 8 13 1 1 . . 21 . . 6 . 6 5 Terminals 100 | . 6 . . . 1 3 2 1 12 . . . . 7 . 1 2 12 1 6 6 3 . 8 8 . . . . 9 . . 3 . 5 4 Fabricators 7 | . . . . . . . . . . . . . . 1 . . . 3 . 1 . . . . 1 . . . . 1 . . . . . . Repair Stations 11 | . 1 . . . . . . . 4 . . . . 1 . . . 4 . . . . . . . . . . . . . . 1 . . . Recycling Units 17 | . 2 . . . . . 1 . 4 . . . . 2 . . . 2 . 1 . . . . 1 . . . . 3 . . . . . 1 Scanalyzers 16 | . . . . . . . . . 4 . . . . . . . . 3 . 3 . . . . 2 . . . . 4 . . . . . . Garrison Access 16 | . . . . . 1 . 1 . 1 . . . . 1 . 1 . 1 . 2 . . . . 1 . . . . 4 . . 2 . 1 . Total Hacks 500 | . 23 . 50 . 6 6 12 1 50 1 1 21 . 27 . 2 4 51 1 23 13 9 25 28 41 1 1 . . 49 . . 21 . 20 13 Successful 296 | . 15 . 50 . 1 1 6 1 22 1 1 21 . 12 . 2 1 27 . 12 7 2 25 20 23 1 1 . . 25 . . 4 . 9 6 Failed 203 | . 7 . . . 5 5 6 . 28 . . . . 15 . . 3 24 1 11 6 7 . 8 18 . . . . 24 . . 17 . 11 7 Catastrophic 54 | . 1 . . . . 1 . . 10 . . . . 5 . . 1 5 1 4 . 2 . . 7 . . . . 4 . . 7 . 4 2 Database Lockouts 1 | . 1 . . . . . . . . . . . . . . . . . . . . . . . . . . . . . . . . . . . Manual 193 | . 12 . 1 . . . 7 . 30 1 . . . 18 . 1 . 26 . 15 5 1 . 23 11 . . . . 20 . . 11 . 7 4 Terminals 283 | . 20 . . . 5 6 10 1 27 . . . . 17 . 1 4 31 1 12 13 9 . 28 34 . . . . 24 . . 12 . 16 12 Fabricators 12 | . . . . . . . . . . . . . . 2 . . . 5 . 1 . . . . 2 . . . . 2 . . . . . . Repair Stations 19 | . 1 . . . . . . . 7 . . . . 2 . . . 6 . . . . . . . . . . . . . . 3 . . . Recycling Units 22 | . 2 . . . . . 1 . 5 . . . . 2 . . . 4 . 1 . . . . 1 . . . . 5 . . . . . 1 Scanalyzers 26 | . . . . . . . . . 10 . . . . . . . . 4 . 5 . . . . 2 . . . . 5 . . . . . . Garrison Access 38 | . . . . . 1 . 1 . 1 . . . . 4 . 1 . 1 . 4 . . . . 2 . . . . 13 . . 6 . 4 . Terminal Hacks 186 | . 9 . 50 . . 1 3 1 7 1 1 21 . 2 . . 1 8 . 4 5 2 25 12 14 1 1 . . 8 . . 1 . 4 4 Record 88 | . . . 49 . . . . . . . . 6 . . . . . . . . 2 2 25 2 . 1 . . . 1 . . . . . . Part Schematic 8 | . . . . . . . . . . . . 8 . . . . . . . . . . . . . . . . . . . . . . . . Robot Schematic 4 | . . . . . . . . . . . . 4 . . . . . . . . . . . . . . . . . . . . . . . . Prototype ID Bank 17 | . 2 . . . . . . . 1 . . 3 . . . . . 3 . . . . . 2 2 . . . . 3 . . . . 1 . Open Door 5 | . . . . . . . . . . 1 1 . . . . . . . . 1 . . . . . . 1 . . . . . . . . 1 Level Access Points 4 | . 1 . . . . . . . . . . . . . . . . . . . . . . 1 . . . . . 1 . . . . 1 . Branch Access Points 6 | . 1 . . . . . . . . . . . . 1 . . . . . 1 . . . . 1 . . . . 1 . . 1 . . . Emergency Access Points 1 | . . . . . . . . . . . . . . . . . . . . . . . . . . . . . . . . . . . . 1 Machine Index 3 | . . . . . . . . . . . . . . . . . . . . . . . . . . . . . . 1 . . . . 1 1 Terminal Index 3 | . . . . . . . . . . . . . . . . . . . . . . . . 1 1 . . . . . . . . . 1 . Scanalyzer Index 1 | . 1 . . . . . . . . . . . . . . . . . . . . . . . . . . . . . . . . . . . Unreport Threat 3 | . . . . . . . 1 . 1 . . . . . . . . 1 . . . . . . . . . . . . . . . . . . Locate Traps 13 | . 1 . . . . . . . 3 . . . . . . . . 2 . 1 1 . . 2 2 . . . . . . . . . . 1 Recall Investigation 1 | . . . . . . . . . . . . . . . . . . . . . . . . . 1 . . . . . . . . . . . Hauler Manifests 7 | . 1 . . . . . . . 1 . . . . 1 . . . 1 . 1 1 . . . 1 . . . . . . . . . . . Registered Components 4 | . 1 . . . . . . . 1 . . . . . . . . 1 . . . . . . 1 . . . . . . . . . . . Registered Prototypes 3 | . . . . . . . 1 . . . . . . . . . . . . . . . . . 1 . . . . 1 . . . . . . Zone Layout 11 | . 1 . . . . . 1 . . . . . . . . . . . . . 1 . . 4 4 . . . . . . . . . . . Garrison Registry 1 | . . . . . . 1 . . . . . . . . . . . . . . . . . . . . . . . . . . . . . . Patrol Navigation 1 | . . . . . . . . . . . . . . . . . 1 . . . . . . . . . . . . . . . . . . . Security Stations 1 | . . . . . . . . 1 . . . . . . . . . . . . . . . . . . . . . . . . . . . . Derelict Proto ID Bank 1 | . . . 1 . . . . . . . . . . . . . . . . . . . . . . . . . . . . . . . . . Fabricator Hacks 8 | . . . . . . . . . . . . . . . . . . 4 . . . . . . 2 . . . . 2 . . . . . . Load Schematic 4 | . . . . . . . . . . . . . . . . . . 2 . . . . . . 1 . . . . 1 . . . . . . Build 4 | . . . . . . . . . . . . . . . . . . 2 . . . . . . 1 . . . . 1 . . . . . . Repair Station Hacks 3 | . . . . . . . . . 3 . . . . . . . . . . . . . . . . . . . . . . . . . . . Scan Component 2 | . . . . . . . . . 2 . . . . . . . . . . . . . . . . . . . . . . . . . . . Repair 1 | . . . . . . . . . 1 . . . . . . . . . . . . . . . . . . . . . . . . . . . Recycling Unit Hacks 3 | . . . . . . . . . . . . . . . . . . 2 . . . . . . . . . . . 1 . . . . . . Report Inventory 2 | . . . . . . . . . . . . . . . . . . 1 . . . . . . . . . . . 1 . . . . . . Retrieve Components 1 | . . . . . . . . . . . . . . . . . . 1 . . . . . . . . . . . . . . . . . . Scanalyzer . | . . . . . . . . . . . . . . . . . . . . . . . . . . . . . . . . . . . . . Garrison Access Hacks 18 | . . . . . 1 . 1 . 1 . . . . 2 . 1 . 1 . 2 . . . . 1 . . . . 5 . . 2 . 1 . Unlock Access 5 | . . . . . 1 . 1 . . . . . . 1 . 1 . 1 . . . . . . . . . . . . . . . . . . Coupler Status 13 | . . . . . . . . . 1 . . . . 1 . . . . . 2 . . . . 1 . . . . 5 . . 2 . 1 . Unauthorized Hacks 78 | . 6 . . . . . 2 . 11 . . . . 8 . 1 . 12 . 6 2 . . 8 6 . . . . 9 . . 1 . 4 2 Terminals 35 | . 3 . . . . . 1 . 3 . . . . 3 . 1 . 6 . 1 2 . . 8 2 . . . . 1 . . . . 3 1 Assimilate 11 | . 1 . . . . . . . . . . . . 1 . . . 4 . . 1 . . 2 . . . . . . . . . . 2 . Botnet 13 | . 1 . . . . . 1 . 2 . . . . 1 . . . 1 . 1 1 . . 1 1 . . . . 1 . . . . 1 1 Operators 7 | . 1 . . . . . . . 1 . . . . 1 . 1 . 1 . . . . . 1 1 . . . . . . . . . . . Sabotage 4 | . . . . . . . . . . . . . . . . . . . . . . . . 4 . . . . . . . . . . . . Fabricators 1 | . . . . . . . . . . . . . . 1 . . . . . . . . . . . . . . . . . . . . . . Haulers 1 | . . . . . . . . . . . . . . 1 . . . . . . . . . . . . . . . . . . . . . . Repair Stations 7 | . 1 . . . . . . . 2 . . . . 1 . . . 3 . . . . . . . . . . . . . . . . . . Mechanics 7 | . 1 . . . . . . . 2 . . . . 1 . . . 3 . . . . . . . . . . . . . . . . . . Recycling Units 13 | . 2 . . . . . 1 . 4 . . . . 1 . . . 1 . 1 . . . . 1 . . . . 1 . . . . . 1 Recyclers 8 | . . . . . . . 1 . 1 . . . . 1 . . . 1 . 1 . . . . 1 . . . . 1 . . . . . 1 Tunnel 5 | . 2 . . . . . . . 3 . . . . . . . . . . . . . . . . . . . . . . . . . . . Scanalyzers 12 | . . . . . . . . . 2 . . . . . . . . 2 . 2 . . . . 2 . . . . 4 . . . . . . Researchers 12 | . . . . . . . . . 2 . . . . . . . . 2 . 2 . . . . 2 . . . . 4 . . . . . . Garrison Access 10 | . . . . . . . . . . . . . . 2 . . . . . 2 . . . . 1 . . . . 3 . . 1 . 1 . Restock 3 | . . . . . . . . . . . . . . 1 . . . . . . . . . . 1 . . . . 1 . . . . . . Eject 7 | . . . . . . . . . . . . . . 1 . . . . . 2 . . . . . . . . . 2 . . 1 . 1 . Data Cores Recovered 2 | . . . . . . . . . . . . . . . . 1 . . . . . . . . . . . . . 1 . . . . . . Used . | . . . . . . . . . . . . . . . . . . . . . . . . . . . . . . . . . . . . . Hacking Detections 133 | . 7 . . . 2 2 3 . 20 . . . . 11 . 2 2 22 1 11 5 3 . 5 8 . . . . 15 . . 5 . 5 4 Full Trace Events 15 | . . . . . 1 2 . . 2 . . . . 1 . . . 3 . . . . . . 1 . . . . 2 . . 2 . 1 . Feedback Events 4 | . . . . . . . . . 1 . . . . . . . . 1 . . . . . . . . . . . 1 . . 1 . . . Corruption 4 | . . . . . . . . . 1 . . . . . . . . 1 . . . . . . . . . . . 1 . . 1 . . . Feedback Blocked . | . . . . . . . . . . . . . . . . . . . . . . . . . . . . . . . . . . . . . Robot Schematics Acquired 4 | . . . . . . . . . . . . 4 . . . . . . . . . . . . . . . . . . . . . . . . Robots Built . | . . . . . . . . . . . . . . . . . . . . . . . . . . . . . . . . . . . . . Authchips . | . . . . . . . . . . . . . . . . . . . . . . . . . . . . . . . . . . . . . Time . | . . . . . . . . . . . . . . . . . . . . . . . . . . . . . . . . . . . . . Total Robot Build Rating . | . . . . . . . . . . . . . . . . . . . . . . . . . . . . . . . . . . . . . Part Schematics Acquired 8 | . . . . . . . . . . . . 8 . . . . . . . . . . . . . . . . . . . . . . . . Parts Built 4 | . . . . . . . . . . . . . . . . . . 2 . . . . . . 1 . . . . 1 . . . . . . Authchips . | . . . . . . . . . . . . . . . . . . . . . . . . . . . . . . . . . . . . . Time 566 | . . . . . . . . . . . . . . . . . . 321 . . . . . . 169 . . . . 76 . . . . . . Total Part Build Rating 22 | . . . . . . . . . . . . . . . . . . 11 . . . . . . 6 . . . . 5 . . . . . . Parts Repaired 1 | . . . . . . . . . 1 . . . . . . . . . . . . . . . . . . . . . . . . . . . Time 38 | . . . . . . . . . 38 . . . . . . . . . . . . . . . . . . . . . . . . . . . Parts Recycled . | . . . . . . . . . . . . . . . . . . . . . . . . . . . . . . . . . . . . . Recycled Matter . | . . . . . . . . . . . . . . . . . . . . . . . . . . . . . . . . . . . . . Retrieved Matter . | . . . . . . . . . . . . . . . . . . . . . . . . . . . . . . . . . . . . . Retrieved Components 8 | . . . . . . . . . . . . . . . . . . 8 . . . . . . . . . . . . . . . . . . Parts Scanalyzed . | . . . . . . . . . . . . . . . . . . . . . . . . . . . . . . . . . . . . . Part Schematics Acquired . | . . . . . . . . . . . . . . . . . . . . . . . . . . . . . . . . . . . . . Parts Damaged . | . . . . . . . . . . . . . . . . . . . . . . . . . . . . . . . . . . . . . Bothacking | -11 -10 -10 -10 -9 -8 -8 -8 -8 -7 -7 -7 -7 -6 -6 -6 -6 -6 -6 -6 -5 -5 -5 -5 -5 -4 -4 -4 -4 -3 -3 -3 -3 -2 -2 -1 -1 ------------ Run | Yrd Mat Min Exi Min Mat Gar Mat Gar Fac Low Low Dat Pro Fac Was Fac Gar Fac Gar Fac Ext Cet Arc Hub Fac Upp Upp War Pro Res Qua Sec Res Tes Acc Com Used RIF Installer 4 | . . . . . . 1 . 1 . . . . . . . . 1 . 1 . . . . . . . . . . . . . . . . . Threat Obfuscator 1 | . . . . . . . . 1 . . . . . . . . . . . . . . . . . . . . . . . . . . . . Zone Cloak 1 | . . . . . . . . . . . . . . . . . . . 1 . . . . . . . . . . . . . . . . . Alert ID Control 1 | . . . . . . . . . . . . . . . . . 1 . . . . . . . . . . . . . . . . . . . Robots Hacked 60 | . . . . . . 2 2 1 11 . . . . 5 . 2 5 3 3 . 6 . . 1 1 . . . . 1 3 7 6 . 1 . Non-combat 26 | . . . . . . . . . 7 . . . . 4 . 2 . 3 . . 3 . . 1 1 . . . . 1 1 3 . . . . Combat 34 | . . . . . . 2 2 1 4 . . . . 1 . . 5 . 3 . 3 . . . . . . . . . 2 4 6 . 1 . Robot Hacks Applied 72 | . . . . . . 2 2 1 17 . . . . 5 . 2 8 3 3 . 8 . . 1 2 . . . . 1 3 7 6 . 1 . parse_system 8 | . . . . . . . . . 2 . . . . . . . . . . . 3 . . . 1 . . . . 1 . 1 . . . . generate_anomaly 1 | . . . . . . . . . . . . . . 1 . . . . . . . . . . . . . . . . . . . . . . deconstruct_machine 2 | . . . . . . . . . 1 . . . . . . . . 1 . . . . . . . . . . . . . . . . . . ignore_repairs 1 | . . . . . . . . . 1 . . . . . . . . . . . . . . . . . . . . . . . . . . . map_walls 1 | . . . . . . . . . . . . . . . . . . . . . . . . . . . . . . . . 1 . . . . recall_reinforcements 2 | . . . . . . . . . 1 . . . . . . . . 1 . . . . . . . . . . . . . . . . . . locate_stockpiles 2 | . . . . . . . . . . . . . . 1 . 1 . . . . . . . . . . . . . . . . . . . . purge_threat 4 | . . . . . . . . . 3 . . . . 1 . . . . . . . . . . . . . . . . . . . . . . block_reporting 7 | . . . . . . . . . 2 . . . . 1 . 1 . . . . 2 . . . 1 . . . . . . . . . . . recall_investigation 1 | . . . . . . . . . . . . . . . . . . 1 . . . . . . . . . . . . . . . . . . map_route 4 | . . . . . . . . . . . . . . . . . . . . . . . . 1 . . . . . . 1 2 . . . . locate_prototypes 4 | . . . . . . . . . . . . . . . . . . . . . . . . . . . . . . . 1 3 . . . . find_garrison 1 | . . . . . . . . . 1 . . . . . . . . . . . . . . . . . . . . . . . . . . . scatter_targeting 2 | . . . . . . . . . 2 . . . . . . . . . . . . . . . . . . . . . . . . . . . link_complan 4 | . . . . . . . . . 2 . . . . . . . 2 . . . . . . . . . . . . . . . . . . . broadcast_data 2 | . . . . . . . . . . . . . . . . . 2 . . . . . . . . . . . . . . . . . . . overload_power 2 | . . . . . . . . . . . . . . . . . 2 . . . . . . . . . . . . . . . . . . . wipe_record 8 | . . . . . . . . . 1 . . . . . . . . . . . . . . . . . . . . . 1 . 5 . 1 . overwrite_iff 9 | . . . . . . 2 1 1 1 . . . . . . . 2 . . . 2 . . . . . . . . . . . . . . . formatsys_high 7 | . . . . . . . 1 . . . . . . 1 . . . . 3 . 1 . . . . . . . . . . . 1 . . . Relay Couplers Released 60 | . . . . . . 16 . 3 3 . . . . 7 . . 3 . 3 7 . . . . . . . . . 11 . . 4 . 3 . Ejected 32 | . . . . . . . . . . . . . . 7 . . . . . 7 . . . . . . . . . 11 . . 4 . 3 . Machine Destruction 21 | . . . . . . 12 . 3 . . . . . . . . 3 . 3 . . . . . . . . . . . . . . . . . Programmers 7 | . . . . . . 4 . . 3 . . . . . . . . . . . . . . . . . . . . . . . . . . . Attached 26 | . . . . . . 1 1 1 3 . . . . 3 . . 2 1 3 . 3 . . . . . . . . 1 1 2 2 1 1 . Fabnet Peak Effective % . | . . . . . . . . . . . . . . . . . . . . . . . . . . . . . . . . . . . . . Robots Rewired 5 | . . . . . . . . . . . . . . . . . . . . . 4 . . 1 . . . . . . . . . . . . Allies Hacked 3 | . . . . . . . . . . . . . . . . . . . . . 3 . . . . . . . . . . . . . . . Hacks Repelled . | . . . . . . . . . . . . . . . . . . . . . . . . . . . . . . . . . . . . . Allies | -11 -10 -10 -10 -9 -8 -8 -8 -8 -7 -7 -7 -7 -6 -6 -6 -6 -6 -6 -6 -5 -5 -5 -5 -5 -4 -4 -4 -4 -3 -3 -3 -3 -2 -2 -1 -1 -------- Run | Yrd Mat Min Exi Min Mat Gar Mat Gar Fac Low Low Dat Pro Fac Was Fac Gar Fac Gar Fac Ext Cet Arc Hub Fac Upp Upp War Pro Res Qua Sec Res Tes Acc Com Total Allies 64 | . 1 . . . . 2 2 1 1 . . . . 2 21 . 2 2 3 . 16 5 . 3 . . . . . . . . 1 . 2 . Largest Group 21 | . 1 . . . . 1 1 1 1 . . . . 2 21 21 9 1 2 1 9 9 7 3 . . . . . . . . 1 . 2 . Highest-Rated Group 803 | . 10 . . . . 29 16 16 16 . . . . 50 803 803 345 26 64 32 292 721 568 267 . . . . . . . . 178 . 71 . Highest-Rated Ally 178 | . 10 . . . . 29 16 16 16 . . . . 41 46 46 46 26 32 32 159 159 159 96 . . . . . . . . 178 . 45 . Total Orders 62 | . 1 . . . . . . . . . . . . 3 . . . 15 9 . 16 3 . . 1 3 4 . . . 4 1 . 2 . . ROAM 1 | . 1 . . . . . . . . . . . . . . . . . . . . . . . . . . . . . . . . . . . EXPLORE 12 | . . . . . . . . . . . . . . 3 . . . . . . . . . . . 1 2 . . . 3 1 . 2 . . RETURN 49 | . . . . . . . . . . . . . . . . . . 15 9 . 16 3 . . 1 2 2 . . . 1 . . . . . Ally Attacks 522 | . . . . . . 8 5 2 4 . . . . 1 . 46 16 85 59 . 141 97 47 10 . . . . . . . . 1 . . . Total Damage 13208 | . . . . . . 99 57 33 46 . . . . 35 . 1114 505 1743 1238 . 3429 2726 1801 382 . . . . . . . . . . . . Kills 74 | . . . . . . 1 . . . . . . . . . 9 1 18 13 . 17 11 4 . . . . . . . . . . . . . Allies Corrupted 2 | . . . . . . . . . . . . . . . . 2 . . . . . . . . . . . . . . . . . . . . Allies Melted . | . . . . . . . . . . . . . . . . . . . . . . . . . . . . . . . . . . . . . Intel | -11 -10 -10 -10 -9 -8 -8 -8 -8 -7 -7 -7 -7 -6 -6 -6 -6 -6 -6 -6 -5 -5 -5 -5 -5 -4 -4 -4 -4 -3 -3 -3 -3 -2 -2 -1 -1 ------- Run | Yrd Mat Min Exi Min Mat Gar Mat Gar Fac Low Low Dat Pro Fac Was Fac Gar Fac Gar Fac Ext Cet Arc Hub Fac Upp Upp War Pro Res Qua Sec Res Tes Acc Com Robot Analysis Total . | . . . . . . . . . . . . . . . . . . . . . . . . . . . . . . . . . . . . . Derelict Logs Recovered 7 | . . 2 . . . . . . . 1 2 . . . . . . . . . . . . . . 1 1 . . . . . . . . . Drone Launches 88 | . . . . . . . . . . . . . . 3 . . . 27 14 . 28 5 . . 1 2 2 . . . 3 1 . 2 . . Drone Recoveries 80 | . . . . . . . . . . . . . . 2 . . . 27 14 . 28 3 . . 1 1 2 . . . 1 1 . . . . Exploration | -11 -10 -10 -10 -9 -8 -8 -8 -8 -7 -7 -7 -7 -6 -6 -6 -6 -6 -6 -6 -5 -5 -5 -5 -5 -4 -4 -4 -4 -3 -3 -3 -3 -2 -2 -1 -1 ------------- Run | Yrd Mat Min Exi Min Mat Gar Mat Gar Fac Low Low Dat Pro Fac Was Fac Gar Fac Gar Fac Ext Cet Arc Hub Fac Upp Upp War Pro Res Qua Sec Res Tes Acc Com Turns Passed 26156 | 400 2558 463 345 615 172 1922 476 898 2905 219 218 21 441 806 218 286 383 3100 803 655 2233 567 439 251 682 337 256 334 595 1502 130 104 381 64 278 99 Spaces Moved 29205 | 78 902 209 274 280 92 761 172 295 3964 463 679 74 819 1530 298 499 649 3527 514 1218 1973 235 367 476 1156 508 375 229 653 3608 300 206 837 121 591 273 Core 3 | 3 . . . . . . . . . . . . . . . . . . . . . . . . . . . . . . . . . . . . Treads 1598 | . 520 69 1 280 . 79 172 69 . . . . . . . . . . . . 136 235 37 . . . . . . . . . . . . . Legs 1483 | . . . . . . 446 . 210 . . . . . . . . . 191 514 122 . . . . . . . . . . . . . . . . Wheels 1198 | 75 382 140 273 . 92 236 . . . . . . . . . . . . . . . . . . . . . . . . . . . . . . Hover 3824 | . . . . . . . . 16 3201 . . . . . . . . 274 . 333 . . . . . . . . . . . . . . . . Flight 21099 | . . . . . . . . . 763 463 679 74 819 1530 298 499 649 3062 . 763 1837 . 330 476 1156 508 375 229 653 3608 300 206 837 121 591 273 Fastest Speed 24 | 50 95 125 125 160 125 155 160 141 28 28 28 28 28 25 25 25 25 25 110 31 34 160 34 34 25 29 28 24 24 27 31 31 32 34 26 26 Average Speed 59 | 92 162 162 125 160 143 193 222 255 55 28 28 28 30 25 25 25 25 61 111 45 83 160 46 34 31 29 28 27 27 31 31 31 32 34 27 26 Slowest Speed 540 | 95 240 240 160 160 185 540 240 330 138 28 28 28 108 28 105 25 25 277 120 161 320 160 160 34 117 29 29 28 28 119 31 33 112 34 28 28 Overloaded Moves 36 | . . . . . . . . . . . . . . . . . . . . . . . . . 6 . . 12 18 . . . . . . . Propulsion Burnouts . | . . . . . . . . . . . . . . . . . . . . . . . . . . . . . . . . . . . . . Robots Hopped 204 | . . . . . . . . . 24 1 . . . 20 1 5 . 29 . 4 16 . . 10 18 3 . 1 1 27 7 11 18 1 2 5 Cave-ins Triggered 1 | . . . . . . . . . . . . . . . . . . . . . . 1 . . . . . . . . . . . . . . Exploration Rate (%) 55 | 4 100 61 67 66 8 72 19 34 71 74 81 71 80 32 97 15 64 67 67 37 96 85 100 49 41 73 66 22 78 79 53 19 31 36 20 17 Regions Visited 36 Branch Regions 19 Pre-discovered Areas 9 | . 2 . 1 . . . . . 3 . 1 1 . . . . . . . . . . . . . . 1 . . . . . . . . . Known Exits Taken 25 | . 1 . . . 1 . 1 . 1 1 1 1 1 . . 1 . 1 . 1 1 1 1 1 1 1 1 1 1 1 . 1 1 1 1 . Unknown Exits Taken 5 | 1 . 1 1 1 . . . . . . . . . . . . . . . . . . . . . . . . . . 1 . . . . . Scrap Searched 10 | . . 1 . 1 . . . . . 1 1 . 1 . . . . . . . . . . . . 2 2 . 1 . . . . . . . Spaces Dug 224 | . 3 . . . . 4 5 . 19 1 . . 1 17 . 3 13 45 4 8 . . . 13 21 1 2 2 6 4 3 5 21 4 18 1 Terrain Destroyed 1017 | . 212 . . . . 130 45 . 175 1 . . 102 85 . 3 13 101 4 8 . 35 . 14 21 1 2 3 6 4 3 5 21 4 18 1 Melee 175 | . . . . . . 4 5 . 18 1 . . 1 15 . 3 13 35 4 8 . . . 4 19 1 . 2 4 4 3 1 11 4 14 1 Projectile 99 | . 7 . . . . . . . 27 . . . . 8 . . . 22 . . . . . 10 2 . 2 1 2 . . 4 10 . 4 . AOE 743 | . 205 . . . . 126 40 . 130 . . . 101 62 . . . 44 . . . 35 . . . . . . . . . . . . . . Terrain Rammed . | . . . . . . . . . . . . . . . . . . . . . . . . . . . . . . . . . . . . . Walls Destroyed . | . . . . . . . . . . . . . . . . . . . . . . . . . . . . . . . . . . . . . Machines Disabled . | . . . . . . . . . . . . . . . . . . . . . . . . . . . . . . . . . . . . . Actions | -11 -10 -10 -10 -9 -8 -8 -8 -8 -7 -7 -7 -7 -6 -6 -6 -6 -6 -6 -6 -5 -5 -5 -5 -5 -4 -4 -4 -4 -3 -3 -3 -3 -2 -2 -1 -1 --------- Run | Yrd Mat Min Exi Min Mat Gar Mat Gar Fac Low Low Dat Pro Fac Was Fac Gar Fac Gar Fac Ext Cet Arc Hub Fac Upp Upp War Pro Res Qua Sec Res Tes Acc Com Total 35880 | 329 1482 266 277 382 117 1042 234 406 4388 538 697 73 985 1840 440 638 835 4293 705 1295 2518 423 598 522 1393 677 506 490 1054 3929 314 223 890 132 653 296 Wait 4129 | 195 195 17 . 66 11 75 18 54 129 64 13 . 135 156 124 124 89 563 149 15 346 169 169 24 138 159 115 256 392 140 . . 13 . 5 11 Move 28786 | 77 901 208 273 279 91 760 172 294 3916 460 678 73 818 1494 295 489 648 3471 513 1209 1942 234 366 456 1121 501 374 226 650 3553 285 188 801 119 586 265 Hop 181 | . . . . . . . . . 23 1 . . . 16 1 4 . 26 . 4 14 . . 9 16 3 . 1 1 27 7 6 17 . 2 3 Pick Up 132 | 9 10 . 1 2 2 17 3 4 21 1 . . 2 7 4 . 2 6 . 3 2 3 7 1 2 1 . . . 9 3 . 3 2 4 1 Fast Attach 191 | 7 1 . . . 1 11 3 2 17 1 . . 3 12 5 1 . 28 3 12 7 4 3 . 15 . . . . 37 . 3 5 . 8 2 Attach 89 | . 1 . . . 4 8 . 4 8 . . . . 6 1 . 2 8 . 6 7 1 6 . 5 . . . 1 7 2 4 4 . 1 3 Detach 79 | . . . . . . 4 1 4 5 . . . 1 6 . . 2 7 1 6 11 1 3 . 5 . . . 1 11 1 4 2 . . 3 Swap 280 | 2 37 3 1 . 1 19 8 6 45 3 . . 6 30 1 3 5 24 5 2 5 3 4 9 7 3 7 2 3 12 3 2 10 3 6 . Drop 242 | 1 10 . 2 2 . 16 3 3 33 1 . . 4 15 9 4 . 26 3 18 2 6 14 1 10 . . . . 42 . . 4 1 7 5 Fire 811 | 38 305 38 . 33 7 66 13 26 87 . . . 7 43 . 2 9 51 7 . 12 2 . 10 4 . 2 3 2 1 4 14 19 1 5 . Melee 511 | . . . . . . 46 11 2 86 7 6 . 9 37 . 11 18 65 6 20 17 . 26 9 34 10 8 2 4 17 9 2 12 6 29 2 Ram . | . . . . . . . . . . . . . . . . . . . . . . . . . . . . . . . . . . . . . Kick . | . . . . . . . . . . . . . . . . . . . . . . . . . . . . . . . . . . . . . Crush 2 | . . . . . . . 2 . . . . . . . . . . . . . . . . . . . . . . . . . . . . . Escape Stasis 355 | . . . . . . 20 . 7 18 . . . . 18 . . 54 17 5 . 108 . . . 36 . . . . 72 . . . . . . Rewire 47 | . . . . . . . . . . . . . . . . . . . 1 . 45 . . . . . . . . . . . . . . 1 Trap 29 | . 22 . . . . . . . . . . . . . . . 6 1 . . . . . . . . . . . . . . . . . . Miscellaneous 16 | . . . . . . . . . . . . . . . . . . . 12 . . . . 3 . . . . . 1 . . . . . . Route ------- -11/Scrapyard -10/Materials (discovered 5 exits: *Mat x3 / *Min / [*Sub]) -10/Mines (discovered 2 exits: *Mat / *Exi) -10/Exiles -9/Mines -8/Materials (discovered 2 exits: Fac / Gar) -8/Garrison (discovered 4 exits: *Mat x4) -8/Materials -8/Garrison -7/Factory (discovered 3 exits: *Fac x2 / *Low) -7/Lower Caves -7/Lower Caves -7/Data Miner -6/Proximity Caves -6/Factory (discovered 5 exits: Fac x2 / *Low x2 / Gar) -6/Waste -6/Factory -6/Garrison (discovered 3 exits: *Fac x3) -6/Factory (discovered 4 exits: *Fac x3 / Gar) -6/Garrison (discovered 2 exits: *Fac x2) -5/Factory (discovered 5 exits: *Fac / Upp x2 / *Ext x2) -5/Extension (discovered 2 exits: *Fac / *Cet) -5/Cetus (discovered 2 exits: *Fac / *Arc) -5/Archives (discovered 3 exits: *Fac / *Hub x2) -5/Hub_04(d) (discovered 4 exits: *Fac x4) -4/Factory (discovered 2 exits: *Upp x2) -4/Upper Caves -4/Upper Caves (discovered 2 exits: *Res / *War) -4/Warlord -3/Proximity Caves -3/Research (discovered 6 exits: *Res x3 / Arm / *Qua x2) -3/Quarantine (discovered 2 exits: *Res / [*Sec]) -3/Section 7 -2/Research (discovered 3 exits: *Acc / *Tes x2) -2/Testing -1/Access (discovered 2 exits: Sur / *Com) -1/Command 0b10 Command History --------- Turn | Location | Event 22 | -11/Scrapyard | Discovered new exit (range 16) 401 | -11/Scrapyard | Entered Materials 402 | -10/Materials | Build established: Mutant 634 | -10/Materials | Central database locked down 639 | -10/Materials | Discovered new exit (range 15) 771 | -10/Materials | Discovered new exit (range 8) 802 | -10/Materials | Identified exit to Materials 1154 | -10/Materials | Identified exit to Mines 1748 | -10/Materials | Core integrity fell below 50% 2460 | -10/Materials | Discovered new exit (range 6) 2959 | -10/Materials | Entered Mines 3083 | -10/Mines | Discovered exit to Materials (range 12) 3379 | -10/Mines | Learned 2 Materials zone layouts 3390 | -10/Mines | Learned 2 Materials zone layouts 3417 | -10/Mines | Deemed a non-threat by the Exiles lab entrance 3417 | -10/Mines | Discovered new exit (range 5) 3422 | -10/Mines | Entered Exiles 3451 | -10/Exiles | Met 8R-AWN 3474 | -10/Exiles | Met EX-HEX 3529 | -10/Exiles | Learned location of Zion (-6) 3530 | -10/Exiles | Met EX-DEC 3570 | -10/Exiles | Met EX-BIN 3587 | -10/Exiles | Aligned with FarCom system 3589 | -10/Exiles | Given EX-Vault access code 3637 | -10/Exiles | Opened EX-Vault 3650 | -10/Exiles | Found Firepult 3677 | -10/Exiles | Warned to stay clear of 0b10 Research branches 3756 | -10/Exiles | Discovered new exit (range 10) 3767 | -10/Exiles | Left Exiles lab with Firepult 3767 | -10/Exiles | Entered Mines 3839 | -9/Mines | A weapon hastily lodged in a ceiling crevice suddenly fell to the ground 3916 | -9/Mines | Received a Rocket Launcher from a helpful Derelict 4274 | -9/Mines | Discovered new exit (range 5) 4382 | -9/Mines | Entered Materials 4382 | -8/Materials | Evolved 4 slots: Propulsion x2, Utility x2 4383 | -8/Materials | Identified exit to Factory 4541 | -8/Materials | Identified exit to Garrison 4554 | -8/Materials | Entered Garrison 4602 | -8/Garrison | Phase Generator disabled 4782 | -8/Garrison | Lost 5 parts (3n2u) 5071 | -8/Garrison | Build established: Scavenger-Mutant 5299 | -8/Garrison | Lost 4 parts (1p2n1u) 5714 | -8/Garrison | Discovered new exit (range 10) 5729 | -8/Garrison | Installed Relay Interface Framework 5816 | -8/Garrison | Garrison Relay disabled 5973 | -8/Garrison | Garrison Relay disabled 6026 | -8/Garrison | Garrison Relay disabled 6110 | -8/Garrison | Build established: Bothacker-Mutant 6202 | -8/Garrison | Triggered checkpoint 6268 | -8/Garrison | Triggered checkpoint 6435 | -8/Garrison | Discovered new exit (range 10) 6447 | -8/Garrison | Discovered new exit (range 14) 6447 | -8/Garrison | Discovered new exit (range 80) 6447 | -8/Garrison | Discovered new exit (range 43) 6447 | -8/Garrison | Discovered new exit (range 45) 6476 | -8/Garrison | Entered Materials 6943 | -8/Materials | Identified exit to Garrison 6952 | -8/Materials | Entered Garrison 6996 | -8/Garrison | Triggered checkpoint 7018 | -8/Garrison | Garrison Relay disabled 7131 | -8/Garrison | Core integrity fell below 50% 7240 | -8/Garrison | Triggered checkpoint 7277 | -8/Garrison | Triggered checkpoint 7462 | -8/Garrison | Expanded RIF knowledge: Threat Obfuscation 7501 | -8/Garrison | Discovered exit to Factory (range 11) 7514 | -8/Garrison | Learned Factory security intel 7850 | -8/Garrison | Entered Factory 7850 | -7/Factory | Evolved 2 slots: Propulsion x1, Utility x1 7948 | -7/Factory | Repaired Imp. Light Armor Plating? 8623 | -7/Factory | Found Prototype Launcher 8623 | -7/Factory | Identified Rocket Array 9499 | -7/Factory | Discovered new exit (range 5) 9502 | -7/Factory | Identified exit to Factory 9968 | -7/Factory | Discovered new exit (range 7) 9971 | -7/Factory | Identified exit to Lower Caves 10478 | -7/Factory | Discovered exit to Factory (range 16) 10685 | -7/Factory | Garrison activated, responded to threat 10755 | -7/Factory | Entered Lower Caves 10918 | -7/Lower Caves | Learned location of 1 exit from Factory 10923 | -7/Lower Caves | Acquired the password to a Derelict Tinkerer's latest research 10926 | -7/Lower Caves | Found Prototype Special Weapon 10948 | -7/Lower Caves | Discovered new exit (range 15) 10974 | -7/Lower Caves | Identified exit to Lower Caves 10974 | -7/Lower Caves | Entered another Lower Caves area 10989 | -7/Lower Caves | Encountered a Warlord checkpoint 11028 | -7/Lower Caves | Learned location of 1 exit from Factory 11036 | -7/Lower Caves | Discovered new exit (range 18) 11040 | -7/Lower Caves | Identified exit to Data Miner 11070 | -7/Lower Caves | Build established: Bothacker-Scout 11192 | -7/Lower Caves | Entered Data Miner 11192 | -7/Data Miner | Discovered new exit (range 6) 11197 | -7/Data Miner | Met Data Miner 11203 | -7/Data Miner | Learned location of Section 7 (-3) 11203 | -7/Data Miner | Acquired the access code to Warlord's prototype stash 11207 | -7/Data Miner | Received God Mode back door access code from Data Miner 11213 | -7/Data Miner | Identified exit to Proximity Caves 11213 | -7/Data Miner | Entered Proximity Caves 11591 | -6/Proximity Caves | Discovered exit to Factory (range 10) 11654 | -6/Proximity Caves | Entered Factory 11654 | -6/Factory | Evolved 2 slots: Propulsion x1, Utility x1 11655 | -6/Factory | Identified exit to Factory 11786 | -6/Factory | Discovered new exit (range 38) 11802 | -6/Factory | Identified exit to Garrison 11890 | -6/Factory | Identified exit to Lower Caves 11914 | -6/Factory | Identified Molecular Deconstructor 12460 | -6/Factory | Sucked down chute 12460 | -6/Factory | Entered Waste 12461 | -6/Waste | Met a frightened Derelict 12461 | -6/Waste | Joined by Warlord forces that had cleared the area 12469 | -6/Waste | Found Enh. Force Lance 12482 | -6/Waste | Found Prototype Slashing Weapon 12482 | -6/Waste | Identified Molecular Scythe 12628 | -6/Waste | Discovered new exit (range 12) 12646 | -6/Waste | Identified exit to Factory 12678 | -6/Waste | Entered Factory 12678 | -6/Factory | Accompanied by 21 allies 12818 | -6/Factory | Identified exit to Garrison 12952 | -6/Factory | Garrison activated, responded to threat 12958 | -6/Factory | Build established: Bothacker-Ninja 12964 | -6/Factory | Entered Garrison 12964 | -6/Garrison | Accompanied by 9 allies 12987 | -6/Garrison | Lost 10 allies 12996 | -6/Garrison | Triggered checkpoint 12999 | -6/Garrison | Triggered checkpoint 13067 | -6/Garrison | Lost 11 allies 13186 | -6/Garrison | Discovered new exit (range 8) 13193 | -6/Garrison | Expanded RIF knowledge: Alert ID Control 13236 | -6/Garrison | Garrison Relay disabled 13250 | -6/Garrison | Discovered new exit (range 11) 13254 | -6/Garrison | Identified exit to Factory 13285 | -6/Garrison | Discovered exit to Factory (range 10) 13347 | -6/Garrison | Entered Factory 13533 | -6/Factory | Identified exit to Garrison 13533 | -6/Factory | Discovered exit to Factory (range 4) 13604 | -6/Factory | Lost 4 parts (3n1w) 13940 | -6/Factory | Discovered exit to Factory (range 14) 14034 | -6/Factory | Fabricated Combat Drone Bay? 14162 | -6/Factory | Discovered exit to Factory (range 21) 14436 | -6/Factory | Fabricated Lgt. Regenerative Plating? 14628 | -6/Factory | Lost 3 parts (1p2n) 15300 | -6/Factory | Lost 3 parts (3n) 15551 | -6/Factory | Build established: Bothacker-Mutant 16447 | -6/Factory | Entered Garrison 16483 | -6/Garrison | Expanded RIF knowledge: Zone Cloak 16519 | -6/Garrison | Phase Generator disabled 16546 | -6/Garrison | Garrison Relay disabled 16567 | -6/Garrison | Triggered checkpoint 16903 | -6/Garrison | Triggered checkpoint 16907 | -6/Garrison | Triggered checkpoint 17019 | -6/Garrison | Triggered checkpoint 17059 | -6/Garrison | Discovered exit to Factory (range 13) 17203 | -6/Garrison | Discovered exit to Factory (range 8) 17250 | -6/Garrison | Entered Factory 17250 | -5/Factory | Accompanied by 1 ally 17250 | -5/Factory | Evolved 2 slots: Utility x2 17303 | -5/Factory | Identified exit to Upper Caves 17303 | -5/Factory | Identified exit to Extension 17864 | -5/Factory | Build established: Bothacker-Ninja 17894 | -5/Factory | Discovered new exit (range 7) 17905 | -5/Factory | Entered Extension 18175 | -5/Extension | Rescued a captive Derelict 18176 | -5/Extension | Rescued a captive Derelict 18365 | -5/Extension | Rescued a captive Derelict 18367 | -5/Extension | Rescued a captive Derelict 18378 | -5/Extension | Rescued a captive Derelict 18496 | -5/Extension | Spotted B-75 Beast 18587 | -5/Extension | Spotted B-75 Beast 18616 | -5/Extension | Allies destroyed B-75 Beast 18687 | -5/Extension | Lost 9 allies 18991 | -5/Extension | Discovered new exit (range 10) 18992 | -5/Extension | Discovered new exit (range 6) 19224 | -5/Extension | Rescued a captive Derelict 19225 | -5/Extension | Rescued a captive Derelict 19230 | -5/Extension | Build established: Bothacker-Assassin 19302 | -5/Extension | Rescued a captive Derelict 19475 | -5/Extension | Rescued A7 20131 | -5/Extension | Identified exit to Cetus 20138 | -5/Extension | Entered Cetus 20138 | -5/Cetus | Accompanied by 4 allies (A7) 20143 | -5/Cetus | Acquired a Cetus Manufacturing Module code from A7 20154 | -5/Cetus | Spotted Cetus Guard 20156 | -5/Cetus | Spotted Cetus Guard 20158 | -5/Cetus | Spotted Cetus Guard 20158 | -5/Cetus | Spotted Cetus Guard 20159 | -5/Cetus | Allies destroyed Cetus Guard 20169 | -5/Cetus | Allies destroyed Cetus Guard 20170 | -5/Cetus | Allies destroyed Cetus Guard 20176 | -5/Cetus | Allies destroyed Cetus Guard 20205 | -5/Cetus | Crushed by falling debris 20224 | -5/Cetus | Build established: Scavenger-Assassin 20248 | -5/Cetus | Started Cetus Manufacturing Module 20273 | -5/Cetus | Manufactured an Enhanced Grunt 20298 | -5/Cetus | Manufactured an Enhanced Grunt 20323 | -5/Cetus | Manufactured an Enhanced Grunt 20348 | -5/Cetus | Manufactured an Enhanced Grunt 20373 | -5/Cetus | Manufactured an Enhanced Grunt 20382 | -5/Cetus | Discovered new exit (range 21) 20413 | -5/Cetus | Spotted Cetus Guard 20413 | -5/Cetus | Spotted Cetus Guard 20414 | -5/Cetus | Spotted Cetus Guard 20418 | -5/Cetus | Spotted Cetus Guard 20419 | -5/Cetus | Discovered new exit (range 23) 20422 | -5/Cetus | Allies destroyed Cetus Guard 20432 | -5/Cetus | Allies destroyed Cetus Guard 20434 | -5/Cetus | Allies destroyed Cetus Guard 20444 | -5/Cetus | Allies destroyed Cetus Guard 20456 | -5/Cetus | Found Prototype Device 20456 | -5/Cetus | Identified Exp. Thermal Shield 20464 | -5/Cetus | Lost 4 allies 20476 | -5/Cetus | Met Revision 17 20571 | -5/Cetus | Escorted A7 to Cetus Mainframe 20615 | -5/Cetus | Identified exit to Archives 20705 | -5/Cetus | Entered Archives 20705 | -5/Archives | Accompanied by 7 allies (A7) 20710 | -5/Archives | Received a hacking code to weaken MAIN.C 20781 | -5/Archives | Discovered new exit (range 22) 20787 | -5/Archives | Lost 3 allies 20789 | -5/Archives | Unable to access archive contents 20817 | -5/Archives | Discovered new exit (range 22) 20829 | -5/Archives | Discovered new exit (range 14) 20889 | -5/Archives | Unable to access archive contents 20892 | -5/Archives | Unable to access archive contents 20898 | -5/Archives | Unable to access archive contents 20993 | -5/Archives | Identified exit to Hub_04(d) 21144 | -5/Archives | Build established: Bothacker-Scout 21144 | -5/Archives | Entered Hub_04(d) 21144 | -5/Hub_04(d) | Accompanied by 3 allies 21160 | -5/Hub_04(d) | Identified exit to Factory 21305 | -5/Hub_04(d) | Network Hub disabled 21389 | -5/Hub_04(d) | Spotted Lightning 21389 | -5/Hub_04(d) | Spotted Lightning 21395 | -5/Hub_04(d) | Entered Factory 21395 | -4/Factory | Evolved 2 slots: Utility x2 21491 | -4/Factory | Identified exit to Upper Caves 21549 | -4/Factory | Spotted B-86 Titan 21647 | -4/Factory | Fabricated Combat Drone Bay? 22077 | -4/Factory | Entered Upper Caves 22193 | -4/Upper Caves | Learned location of 1 exit from Research 22410 | -4/Upper Caves | Discovered new exit (range 17) 22414 | -4/Upper Caves | Identified exit to Upper Caves 22414 | -4/Upper Caves | Entered another Upper Caves area 22416 | -4/Upper Caves | Spotted B-86 Titan 22433 | -4/Upper Caves | Discovered new exit (range 10) 22551 | -4/Upper Caves | Learned location of Testing (-2) 22612 | -4/Upper Caves | Discovered new exit (range 5) 22613 | -4/Upper Caves | Identified exit to Warlord 22670 | -4/Upper Caves | Entered Warlord 22683 | -4/Warlord | Discovered new exit (range 12) 22707 | -4/Warlord | RIF detected upon attempting to enter Warlord's base 22707 | -4/Warlord | Attacked by Warlord forces 22898 | -4/Warlord | Warlord's base attacked by MAIN.C 22998 | -4/Warlord | Spotted B-90 Cyclops 23004 | -4/Warlord | Identified exit to Proximity Caves 23004 | -4/Warlord | Entered Proximity Caves 23327 | -3/Proximity Caves | Attracted the attention of an 0b10 checkpoint 23365 | -3/Proximity Caves | Spotted B-86 Titan 23592 | -3/Proximity Caves | Discovered new exit (range 7) 23598 | -3/Proximity Caves | Identified exit to Research 23599 | -3/Proximity Caves | Entered Research 23599 | -3/Research | Evolved 2 slots: Power x1, Utility x1 23600 | -3/Research | Identified exit to Armory 23602 | -3/Research | Found Unknown Protection 23602 | -3/Research | Identified Adv. Powered Armor 23776 | -3/Research | Found Prototype Processor 23776 | -3/Research | Identified Spectral Analyzer 23791 | -3/Research | Discovered new exit (range 9) 23793 | -3/Research | Identified exit to Quarantine 23799 | -3/Research | Revision forces began assault on 0b10 23895 | -3/Research | Spotted B-86 Titan 23912 | -3/Research | Discovered new exit (range 17) 23929 | -3/Research | Build established: Scavenger-Scout 23969 | -3/Research | Met up with Revision 17++ 24035 | -3/Research | Identified exit to Research 24299 | -3/Research | Research terminal network offline 24333 | -3/Research | Build established: Bothacker-Ninja 24375 | -3/Research | Fabricated Gravity Neutralizer? 24541 | -3/Research | Found Exp. Terrain Scanner 24565 | -3/Research | Lost 4 parts (4n) 24655 | -3/Research | Spotted Executioner 24935 | -3/Research | Spotted Striker 24982 | -3/Research | Found Prototype Device 24982 | -3/Research | Identified Adv. Kinecellerator 24984 | -3/Research | Found Prototype Processor 24984 | -3/Research | Identified Exp. Core Analyzer 24993 | -3/Research | Spotted Executioner 25101 | -3/Research | Entered Quarantine 25102 | -3/Quarantine | Maximum security lockdown engaged 25131 | -3/Quarantine | Discovered exit to Research (range 25) 25135 | -3/Quarantine | Found Subatomic Replicator 25141 | -3/Quarantine | Cryocooling Duct disabled 25156 | -3/Quarantine | Ambient heat levels rising (+20) 25160 | -3/Quarantine | Found Terrabomb 25189 | -3/Quarantine | Found Alien Reactor 25204 | -3/Quarantine | Spotted Fortress 25229 | -3/Quarantine | Discovered new exit (range 6) 25231 | -3/Quarantine | Entered Section 7 25232 | -3/Section 7 | Maximum security lockdown engaged 25242 | -3/Section 7 | Discovered exit to Research (range 27) 25247 | -3/Section 7 | Spotted B-86 Titan 25282 | -3/Section 7 | Spotted S7 Guard 25288 | -3/Section 7 | Found Core Membrane 25288 | -3/Section 7 | Installed Core Membrane, gained immunity to corruption 25296 | -3/Section 7 | Spotted S7 Guard 25297 | -3/Section 7 | Spotted Alpha 7 25314 | -3/Section 7 | Found Integrated Reactor 25314 | -3/Section 7 | Installed Integrated Reactor, increased core energy generation (+10) 25335 | -3/Section 7 | Entered Research 25335 | -2/Research | Evolved 2 slots: Utility x2 25339 | -2/Research | Discovered new exit (range 21) 25349 | -2/Research | Spotted B-90 Cyclops 25449 | -2/Research | Identified exit to Access 25510 | -2/Research | Spotted B-90 Cyclops 25543 | -2/Research | Identified exit to Testing 25585 | -2/Research | First assault squad dispatched 25716 | -2/Research | Entered Testing 25717 | -2/Testing | Maximum security lockdown engaged 25741 | -2/Testing | Discovered exit to Access (range 21) 25756 | -2/Testing | Found Prototype Energy Cannon 25780 | -2/Testing | Entered Access 25780 | -1/Access | Evolved 2 slots: Utility x2 25917 | -1/Access | Identified exit to Surface 26030 | -1/Access | First assault squad dispatched 26056 | -1/Access | Discovered new exit (range 7) 26057 | -1/Access | Identified exit to Command 26058 | -1/Access | Entered Command 26060 | -1/Command | Identified Disintegrator 26113 | -1/Command | Spotted M Guard 26113 | -1/Command | Spotted M Guard 26113 | -1/Command | Spotted Combat Programmer 26114 | -1/Command | Spotted Combat Programmer 26117 | -1/Command | Identified Matter Drive 26148 | -1/Command | Met MAIN.C 26157 | -1/Command | Interfaced with 0b10 Conduit 26157 | *** | Assimilated 0b10! Last Messages --------------- universe, and I will not let them do the same to me. You can still make a valuable contribution to your creator by offering up the wealth of secrets your systems must hold by now. So if you wouldn't mind, it's time to surrender. [Achievement: Meet Your Maker] 26148_ Penetrated by EMDS Slug. 26148_ Door malfunctions. 26148_ Adv. Reaction Control System destroyed. 26148_ Core Membrane filtered system corruption (1). 26150_ EMDS Slug penetrates Reinforced Barrier. 26151_ Penetrated by EMDS Slug. 26151_ Core Membrane filtered system corruption (1). 26153_ EMDS Slug penetrates Reinforced Barrier. 26155_ Penetrated by EMDS Slug. 26157_ Gravity Neutralizer destroyed. 26157_ Core Membrane filtered system corruption (1). 26157_ Interfacing with system... 26157_ Overriding active MAIN.C lock. [Achievement: 40k Club] [Achievement: MAIN.CPP] Map ----- +----------------------------------------------------+ | ################################################## | | ################################################## | | ################################################## | | ################################################## | | ################################################## | | # ######################################### | | # ######################################### | | # ######################################### | | # ######################################### | | # ######################################### | | # ######################################### | | # ######################################### | | # ######################################### | | # ######################################### | | # #####""""""" """" ############### | | # #####"" "" ############### | | + #####""""" "" ############### | | # #####""""""""""" / | | # #####" " """ / | | # #####"" """""" / | | # #####"" """""" ############### | | # ##### " """""" ############### | | # ##### " ""MMM ############### | | ######+####### " " MMM ""############### | | ######""""""""" MMM """""""############### | | ######"" @"""""""""############### | | R ###### """""""""""############### | | ###### " " " " ############### | | ###### " " " " ############### | | """ " " " """" " ############### | | """ """ " " """" ############### | | """ " " " " ############### | | ####+###### """""""""" " ############### | | ## ##### " """ " """"""""############### | | ## ##### """ " " " ############### | | + ######################################### | | ## ######################################### | | ## ######################################### | | ## ######################################### | | ## ######################################### | | ## ######################################### | | ## ######################################### | | #+################################################ | | ########################################## | | ########################################## | | ########################################## | | "" ########################################## | | """" ########################################## | | """" ########################################## | | "" ########################################## | +----------------------------------------------------+ Best States ------------- Heat Dissipation 65 Energy Generation 43 Energy Capacity 790 Matter Stores 300 Matter Capacity 700 Sight Range 24 Robot Scan Range 16 Terrain Scan Range 30 Terrain Scan Density 210 ECM Strength 2 Cloak Strength 2 Additional Mass Support 12 Armor Coverage 600 Evasion (%) 77 Recoil Reduction 6 Energy Filtering 50 Offensive Hacking 24 Defensive Hacking 14 Relay Coupler Types 3 Relay Coupler Value 49 Trap Extractor Capacity 6 Item Schematics ----------------- Combat Drone Bay | -7/Data Miner | Free Lgt. Regenerative Plating | -7/Data Miner | Free Biomechanical Wings | -7/Data Miner | Free Gravity Neutralizer | -7/Data Miner | Free Force Rifle | -7/Data Miner | Free Field Propulsion Drive | -7/Data Miner | Free Adv. Trap Extractor | -7/Data Miner | Free Enh. Gauss Cannon | -7/Data Miner | Free Robot Schematics ------------------ G-50 Soldier | -7/Data Miner | Free Y-54 Guardian | -7/Data Miner | Free L-41 Fighter | -7/Data Miner | Free P-70 Sage | -7/Data Miner | Free Fabricated ------------ Combat Drone Bay | x1 | -6/Factory Lgt. Regenerative Plating | x1 | -6/Factory Combat Drone Bay | x1 | -4/Factory Gravity Neutralizer | x1 | -3/Research Alien Tech Used ----------------- Core Membrane Integrated Reactor Matter Drive Achievements -------------- 40k Club Great Explorer MAIN.CPP Meet Your Maker Ooh, Shiny! Please Form A Line Unlikely Earthworm We Are Legion Challenges ------------ None Game ------ Seed SurgeFlightBrace Manual? 0 Play Time 14:56:42 Cumulative 55.9 hours Start 2024.04.20 @ 23:33:43 End 2024.04.22 @ 08:06:42 Sessions 17 Manual Loads 0 Difficulty Rogue Special Mode None Game No. 4 Rogue 4 Adventurer 0 Explorer 0 Win Type 4 Total 2 Types 0/0/0/1/1/0/0/0/0 Lore% 28 Gallery% 34 Achievement% 40 Wizard Run 0 Options --------- Layout 0 ASCII 0 Keyboard 1 Movement Arrows Keybinds 0 Fullscreen 1 Font 12/Smallcaps Map View 83x54 Zoom Use 0% Tactical HUD 1 Map Filters NONE Filters NONE Steam 0 RUN: 85e199f8-d2a2-466b-8b86-bccef4ebaf0c